Cogmind - Beta 15 @@@ ROGUE MODE // 2025.10.16 @ 18:01:41 Player: shapeshifter Result: Destroyed by P-80 Master with Gamma Rifle Performance ------------- Evolutions (9) 4500 Regions Visited (31) 6200 Robots Destroyed (366) 1830 Value Destroyed (21600) 21600 Prototype IDs (53) 1060 Alien Tech Used (3) 600 Bonus (20737) 20737 TOTAL SCORE: 56527 Bonus ------- High Alert Combat Kills 4353 Follower Combat Kills 3793 Entered Garrisons 800 Acquired ECA 300 Met Zhirov 300 Met Warlord at Base 500 MAIN.C Attacked Warlord 500 Warlord Defense Kills 556 Built Enhanced Grunts 300 A7 Reached Mainframe 300 Met R17 at Cetus 500 Found Hidden Lab 3000 Met R17 at Research 2000 Met Warlord at Research 2000 Invited to Help at Command 2000 Friendly Fire -465 Cogmind --------- Core Integrity 0/1600 Matter 288/300 Energy 48/100 System Corruption 27% Temperature Cool (0) Movement Core (50) Location -1/Access Parts ------- > --- POWER (3) -------- (None) > --- PROPULSION (6) --- (None) > --- UTILITY (11) ----- Spectral Analyzer Armor Integrity Analyzer > --- WEAPON (6) ------- (None) > --- INVENTORY (5) ---- Matter Compressor (235) Advanced Force Field Enhanced Nova Cannon Enhanced Nova Cannon Advanced Remote Datajack Peak State ------------ > --- POWER ------------ Cooled Antimatter Reactor Light Quantum Reactor Light Quantum Reactor > --- PROPULSION ------- Advanced Myomer Leg Experimental Myomer Leg Experimental Myomer Leg Centrium Leg Heavy Shield Leg > --- UTILITY ---------- Advanced Heat Sink Huge Storage Unit Spectral Analyzer Advanced Sensor Array Advanced Signal Interpreter Experimental Target Analyzer Experimental Core Analyzer Armor Integrity Analyzer Advanced Recoil Stabilizer Advanced Transmission Jammer Advanced Hacking Suite > --- WEAPON ----------- Hypervelocity Railgun Hypervelocity Railgun Hypervelocity Railgun Hypervelocity Railgun Hypervelocity Railgun Hypervelocity Railgun > --- INVENTORY -------- Reinforced Fission Core Advanced Myomer Leg Centrium Leg Heavy Shield Leg High-capacity Storage Unit Advanced Energy Well Matter Compressor Advanced Force Field System Shield Transdimensional Reconstructor Vortex Rail Vortex Rail Enhanced Nova Cannon Enhanced Nova Cannon Enhanced Nova Cannon Enhanced Nova Cannon BFG-9k Vortex Edition Fusion Bomb Launcher Advanced Remote Datajack [Rating: 217] Favorites ----------- Power Quantum Reactor Engine Light Angular Momentum Engine Power Core Neutrino Core Reactor Quantum Reactor Propulsion Improved Heavy Treads Treads Improved Heavy Treads Leg Experimental Myomer Leg Wheel Armored Huge Wheel Hover Unit Aerolev Unit Flight Unit Xenon Bombardment Thruster Utility Huge Storage Unit Device Advanced Cooling System Storage Huge Storage Unit Processor Armor Integrity Analyzer Hackware Advanced Hacking Suite Protection Centrium Medium Armor Plating Weapon Cooled Plasma Rifle Energy Gun Cooled Plasma Rifle Energy Cannon Heavy Plasma Cannon Ballistic Gun Hypervelocity Railgun Ballistic Cannon Heavy Linear Accelerator Launcher Fusion Bomb Launcher Special Weapon Remote Datajack Piercing Weapon Force Lance Build | -11 -10 -10 -10 -9 -8 -8 -8 -8 -8 -7 -7 -7 -7 -6 -6 -6 -5 -5 -5 -5 -4 -4 -4 -4 -4 -3 -3 -3 -3 -2 -1 ------- Run | Yrd Mat Min Exi Min Mat Gar Mat Sto Gar Fac Gar Fac Gar Fac Ext Cet Fac Upp Upp Zhi Pro Fac Upp Upp War Pro Res Arm Lab Res Acc Slots Evolved 18 | . . . . . 4 . . . . 2 . . . 2 . . 2 . . . . 2 . . . . 2 . . 2 2 Power 1 | . . . . . . . . . . . . . . . . . 1 . . . . . . . . . . . . . . Propulsion 4 | . . . . . 1 . . . . . . . . 1 . . 1 . . . . 1 . . . . . . . . . Utility 9 | . . . . . 2 . . . . 2 . . . 1 . . . . . . . . . . . . 2 . . . 2 Weapon 4 | . . . . . 1 . . . . . . . . . . . . . . . . 1 . . . . . . . 2 . Parts Attached 225 | 7 1 . . 6 2 15 3 11 10 7 12 1 23 6 7 6 9 2 2 6 4 7 . 2 10 4 13 29 . 4 16 Power 27 | 1 . . . 1 . 2 . . 2 1 2 . 1 . . 1 1 . 2 . 1 . . . 1 . 1 7 . 1 2 Engine 4 | 1 . . . 1 . . . . . . 1 . . . . . 1 . . . . . . . . . . . . . . Core 7 | . . . . . . 2 . . 2 1 . . . . . . . . 1 . . . . . . . . 1 . . . Reactor 16 | . . . . . . . . . . . 1 . 1 . . 1 . . 1 . 1 . . . 1 . 1 6 . 1 2 Propulsion 44 | 2 . . . 3 . 2 . 4 2 1 3 . 5 3 . 1 1 1 . 1 . . . 1 3 3 . 3 . . 5 Treads 9 | 2 . . . 3 . . . . . . . . 1 1 . . . 1 . . . . . 1 . . . . . . . Leg 21 | . . . . . . . . . . . 3 . 4 . . . . . . 1 . . . . 3 3 . 3 . . 4 Wheel 11 | . . . . . . 2 . 2 2 1 . . . 2 . 1 1 . . . . . . . . . . . . . . Hover 1 | . . . . . . . . 1 . . . . . . . . . . . . . . . . . . . . . . . Flight 2 | . . . . . . . . 1 . . . . . . . . . . . . . . . . . . . . . . 1 Utility 81 | 2 1 . . 1 1 8 2 3 3 4 2 1 9 2 3 . 4 1 . 4 3 3 . 1 4 . 8 6 . 2 3 Device 39 | 1 . . . . 1 4 . . . 3 1 . 5 1 . . 2 1 . 3 2 1 . . 3 . 5 5 . . 1 Storage 9 | 1 1 . . . . 2 . . . . . . 1 . 1 . . . . . 1 1 . . . . 1 . . . . Processor 10 | . . . . . . . 1 . . . . . . . 1 . 1 . . . . . . 1 1 . 1 1 . 2 1 Hackware 7 | . . . . . . . . 1 1 . . 1 . 1 . . . . . . . 1 . . . . 1 . . . 1 Protection 16 | . . . . 1 . 2 1 2 2 1 1 . 3 . 1 . 1 . . 1 . . . . . . . . . . . Artifact . | . . . . . . . . . . . . . . . . . . . . . . . . . . . . . . . . Weapon 73 | 2 . . . 1 1 3 1 4 3 1 5 . 8 1 4 4 3 . . 1 . 4 . . 2 1 4 13 . 1 6 Energy Gun 17 | . . . . . . 1 1 3 . . . . . . 1 3 3 . . 1 . . . . . . 1 2 . . 1 Energy Cannon 19 | . . . . . 1 . . 1 . . 3 . 4 1 1 . . . . . . . . . . . 2 2 . . 4 Ballistic Gun 15 | 2 . . . 1 . 1 . . . . 2 . . . . 1 . . . . . . . . . . . 6 . 1 1 Ballistic Cannon 15 | . . . . . . . . . 3 1 . . 4 . 1 . . . . . . 3 . . 2 . . 1 . . . Launcher 4 | . . . . . . 1 . . . . . . . . . . . . . . . . . . . 1 1 1 . . . Special Weapon 2 | . . . . . . . . . . . . . . . 1 . . . . . . . . . . . . 1 . . . Impact Weapon . | . . . . . . . . . . . . . . . . . . . . . . . . . . . . . . . . Slashing Weapon . | . . . . . . . . . . . . . . . . . . . . . . . . . . . . . . . . Piercing Weapon 1 | . . . . . . . . . . . . . . . . . . . . . . 1 . . . . . . . . . Special Melee Weapon . | . . . . . . . . . . . . . . . . . . . . . . . . . . . . . . . . Unidentified Prototypes 40 | . . . . . 1 . . 5 . . . . . . . 2 2 . 1 3 2 2 . . 6 1 1 10 . 2 2 Corrupted Parts 4 | . . . . . . . . . . . . . . . . 4 . . . . . . . . . . . . . . . System Corruption 13 | . . . . . . . . . . . . . . . . 13 . . . . . . . . . . . . . . . Parts Lost 81 | . . . . . . 2 . 3 6 . 5 . 7 2 5 . . 2 . . . . . 1 . 8 2 1 . . 37 Power 12 | . . . . . . . . . 1 . . . 1 . 1 . . . . . . . . 1 . 1 . 1 . . 6 Propulsion 17 | . . . . . . . . 1 1 . . . 1 . . . . 2 . . . . . . . 2 . . . . 10 Utility 23 | . . . . . . 1 . . 1 . 2 . 2 1 2 . . . . . . . . . . 3 2 . . . 9 Weapon 29 | . . . . . . 1 . 2 3 . 3 . 3 1 2 . . . . . . . . . . 2 . . . . 12 Highest Loss Streak 24 | . . . . . . 1 . 1 5 . 3 . 4 2 2 . . 1 . . . . . 1 . 3 2 1 . . 24 To Critical Strikes 3 | . . . . . . . . 1 . . . . . . . . . 1 . . . . . . . . . . . . 1 Average Backups 18 | 4 8 9 11 12 12 14 21 19 20 22 22 24 19 20 17 18 20 20 20 20 18 18 18 18 18 16 11 17 18 17 17 Power . | 1 1 1 1 . . . 1 1 1 1 1 2 1 1 . 1 . 1 . . . . . . . . . 1 1 1 1 Propulsion 2 | 1 2 2 2 2 3 1 1 2 . . . 2 . 3 4 4 4 3 3 3 5 4 5 5 5 5 1 1 3 3 2 Utility 8 | 1 3 4 6 7 7 12 18 12 12 13 14 15 12 9 7 7 8 8 8 9 7 7 8 7 6 4 4 5 5 5 5 Weapon 4 | . 1 2 2 2 2 . 1 4 5 6 4 4 3 5 4 4 6 6 6 5 4 3 3 3 3 3 3 6 7 5 5 Tool/Special . | . . . . . . . . . . . . . . . . . . . . . . . . . . . . . . . . Unused Backups 61 | . . . . 5 . 2 7 . 1 . 3 . 17 3 . 4 3 1 . 4 . . . . 2 . 1 3 . . 5 Power 1 | . . . . 1 . . . . . . . . . . . . . . . . . . . . . . . . . . . Propulsion 6 | . . . . . . . 1 . . . 2 . . . . 1 . . . . . . . . . . 1 1 . . . Utility 42 | . . . . 3 . 2 5 . 1 . 1 . 13 3 . 3 1 1 . 3 . . . . 2 . . 1 . . 3 Weapon 10 | . . . . 1 . . 1 . . . . . 4 . . . 2 . . . . . . . . . . 1 . . 1 Tool/Special 2 | . . . . . . . . . . . . . . . . . . . . 1 . . . . . . . . . . 1 Average Slot Usage (%) 81 | . 100 100 100 100 66 79 90 89 87 77 85 92 86 70 71 64 77 76 76 79 82 81 80 76 68 64 80 95 95 91 82 Engine 2 | . 14 14 14 14 9 4 . . . . . . . . 4 5 4 5 4 . . . . . . . . . . . . Core 2 | . . . . . . 4 9 9 8 7 4 . . . . . . . . 5 5 5 5 4 1 . . . . . . Reactor 5 | . . . . . . . . . . . 2 7 7 6 1 . 5 5 5 11 11 10 10 6 8 8 8 11 13 11 7 Treads 7 | . 28 28 28 28 18 5 . . . . . . . 1 . . . 5 11 10 11 15 15 15 14 12 . . . . . Leg 5 | . . . . . . . . . . . 6 23 21 . . . . . . . . . . . . . 27 23 22 20 17 Wheel 4 | . . . . . . 12 18 17 15 8 10 . . 11 13 12 12 5 . . . . . . . . . . . . . Device 14 | . 14 14 14 1 . 11 9 4 9 22 22 15 20 15 17 16 17 16 16 14 21 18 20 17 12 7 12 14 13 11 10 Storage 7 | . 14 14 14 14 9 9 9 9 9 7 7 7 7 6 8 13 11 11 11 9 5 5 5 5 5 5 4 4 4 4 2 Processor 5 | . . . . . . . 2 9 . . . . . . 2 6 5 5 5 5 5 5 5 7 12 15 13 14 18 16 20 Protection 4 | . . . . 12 9 9 15 9 17 7 6 7 6 6 5 . . . . 5 5 5 5 5 5 6 4 1 . . . Energy Gun 4 | . . . . . . . 9 23 7 . . . . . 3 5 16 17 16 16 16 6 . . . . . . . . . Energy Cannon 4 | . . . . . 3 9 9 1 . . 12 23 11 19 11 . . . . . . . . . . . 8 1 . . 6 Ballistic Gun 4 | . 28 28 28 28 18 8 9 . . . 2 . . . . . . . . . . . . . . . . 14 18 20 7 Ballistic Cannon 4 | . . . . . . . . . 19 23 7 . 8 . . 1 . . . . . 10 15 15 8 9 . . . . . Peak Build Rating 217 | 7 8 10 10 16 29 50 52 52 51 61 81 81 90 95 89 96 104 111 123 129 132 154 153 154 164 164 169 186 184 206 217 Average Rating 103 | 4 7 8 10 12 17 33 51 47 49 60 66 80 79 82 75 76 100 104 112 124 129 151 153 145 151 152 152 178 184 197 185 On Entrance 88 | . 7 8 10 10 16 20 50 51 48 50 61 81 80 78 84 74 96 104 111 123 129 130 153 153 110 164 109 169 184 184 198 Naked Turns . | . . . . . . . . . . . . . . . . . . . . . . . . . . . . . . . . Heaviest Build 224 | 12 27 27 27 37 44 116 118 116 119 132 140 140 201 204 211 189 200 200 224 224 172 194 194 194 210 209 166 166 159 179 174 Greatest Support 225 | 40 40 40 40 48 48 48 38 38 38 44 84 84 84 150 56 56 66 150 150 150 150 225 225 225 225 225 165 170 170 170 175 Greatest Overweight (x) 7 | . . . . . . 3 3 3 4 4 3 1 2 7 3 6 3 7 1 7 1 . . . 2 1 1 . . 1 4 Average Overweight (x) 1 | . . . . . . 1 3 2 2 3 1 1 1 2 2 2 2 3 1 1 1 . . . . . . . . . . Largest Inventory Capacity 30 | 8 15 15 15 15 15 25 25 25 25 25 25 25 30 30 30 30 30 30 30 30 25 25 25 25 25 25 25 25 25 25 25 Average Capacity 24 | 7 14 15 15 15 15 19 25 25 25 25 25 25 25 30 30 30 30 30 30 27 25 25 25 25 25 25 22 23 25 25 24 Most Carried 30 | 7 9 13 14 15 15 25 25 25 25 25 25 25 30 30 30 30 30 30 30 30 25 25 24 25 25 25 20 25 24 25 25 Average Carried 23 | 4 8 10 13 14 14 17 24 24 24 24 23 25 22 29 26 28 29 28 28 27 24 24 24 24 24 23 16 22 24 23 22 Final Capacity 30 | 8 15 15 15 15 15 25 25 25 25 25 25 25 30 30 30 30 30 30 30 30 25 25 25 25 25 25 20 25 25 25 5 Final Carried 30 | 7 9 13 14 15 14 25 25 23 25 25 25 25 30 28 26 29 30 28 30 30 25 24 24 25 25 13 20 25 24 25 5 Class Distribution -------------------- 23% | Scavenger-Tank 14% | Gunner 11% | Scavenger-Gunner 11% | Mutant 10% | Tank 8% | Executioner 6% | Commander-Gunner 4% | Commander-Mutant Dominant Class ---------------- Mutant | -10/Materials Mutant | -10/Mines Mutant | -10/Exiles Mutant | -9/Mines Mutant | -8/Materials Commander-Mutant | -8/Garrison Commander-Tank | -8/Materials Tank | -8/Storage Tank | -8/Garrison Gunner | -7/Factory Tank | -7/Garrison Gunner | -7/Factory Gunner | -7/Garrison Hauler-Gunner | -6/Factory Commander-Gunner | -6/Extension Commander-Mutant | -6/Cetus Commander-Gunner | -5/Factory Scavenger-Gunner | -5/Upper Caves Scavenger-Gunner | -5/Upper Caves Scavenger-Tank | -5/Zhirov Scavenger-Tank | -4/Proximity Caves Scavenger-Tank | -4/Factory Scavenger-Tank | -4/Upper Caves Scavenger-Tank | -4/Upper Caves Scavenger-Tank | -4/Warlord Scavenger-Tank | -3/Proximity Caves Mutant | -3/Research Commander-Gunner | -3/Armory Gunner | -3/Lab Executioner | -2/Research Executioner | -1/Access Resources | -11 -10 -10 -10 -9 -8 -8 -8 -8 -8 -7 -7 -7 -7 -6 -6 -6 -5 -5 -5 -5 -4 -4 -4 -4 -4 -3 -3 -3 -3 -2 -1 ----------- Run | Yrd Mat Min Exi Min Mat Gar Mat Sto Gar Fac Gar Fac Gar Fac Ext Cet Fac Upp Upp Zhi Pro Fac Upp Upp War Pro Res Arm Lab Res Acc Matter Collected 14544 | 263 12 93 . 36 . 335 102 194 861 432 1042 . 1904 108 496 299 117 89 50 130 70 547 338 1194 332 1098 258 1800 . 844 1500 Remotely . | . . . . . . . . . . . . . . . . . . . . . . . . . . . . . . . . Salvage Created 15076 | 40 44 47 . 55 . 628 296 903 1070 232 1281 97 1924 248 911 151 119 157 212 . 361 277 174 315 145 504 381 1417 . 266 2821 Parts 744 | 12 3 7 . 4 . 31 18 42 56 10 52 2 71 16 39 3 2 2 10 . 13 19 4 20 4 19 19 92 . 12 162 Haulers Intercepted 6 | . . . . . . . . 1 . 1 . . . 1 . . 1 . . . . . . . . . 1 . . . 1 Recyclers Shooed 1 | . . . . . . . . . . . . . . . . . . . . . . . . . . . . . . . 1 Parts Field Recycled . | . . . . . . . . . . . . . . . . . . . . . . . . . . . . . . . . Retrieved Matter . | . . . . . . . . . . . . . . . . . . . . . . . . . . . . . . . . Parts Self-Destructed 101 | . . . . . . . . . . . . . . . . . . 7 19 . 29 . 3 23 . 20 . . . . . Prevented 2 | . . . . . . . . . . . . . . . . . . 1 . . 1 . . . . . . . . . . Kills | -11 -10 -10 -10 -9 -8 -8 -8 -8 -8 -7 -7 -7 -7 -6 -6 -6 -5 -5 -5 -5 -4 -4 -4 -4 -4 -3 -3 -3 -3 -2 -1 ------- Run | Yrd Mat Min Exi Min Mat Gar Mat Sto Gar Fac Gar Fac Gar Fac Ext Cet Fac Upp Upp Zhi Pro Fac Upp Upp War Pro Res Arm Lab Res Acc Combat Hostiles Destroyed 307 | . 1 3 . 1 . 17 5 16 28 3 33 2 43 1 13 4 . 3 7 . 8 9 4 16 4 23 2 18 . 2 41 Guns 95 | . 1 3 . 1 . 2 4 12 11 . 4 . . . 1 . . 1 7 . 7 5 . . . . . 18 . 2 16 Cannons 185 | . . . . . . 9 1 3 17 3 28 2 43 1 9 4 . . . . . 4 4 16 4 19 2 . . . 16 AOE 18 | . . . . . . 5 . . . . . . . . . . . . . . . . . . . 4 . . . . 9 Classes Destroyed 23 | 1 2 1 . 1 . 3 2 3 1 1 2 . . 1 1 . . 2 . . . . . . . . . 1 . 1 . Worker 10 | . . . . . . . . 2 . . . . . 1 1 . 1 . . . . . . . . . . . . . 5 Builder 11 | . . . . . . . 1 . . 1 . . . 4 1 . . . . . . 1 . . . . . . . . 3 Tunneler 6 | 3 . 1 . . . . . . . . . . . . . . . . . . . 1 . . . . . . . . 1 Hauler 6 | . . . . . . . . 1 . 1 . . . 1 . . 1 . . . . . . . . . 1 . . . 1 Recycler 2 | . . . . . . . . . . 1 . . . . . . . . . . . . . . . . . . . . 1 Mechanic 1 | . . . . . . . . . . . . . . . 1 . . . . . . . . . . . . . . . . Operator 7 | . . . . . . . 1 1 . 1 . . . . . . . . . . . . . . . . . 1 . 2 1 Watcher 10 | . 1 . . . . 1 1 . . 1 . . . . . . . . . . . . . . . . 2 1 . . 3 Swarmer 85 | . . 3 . . . 6 2 . 3 . 7 . 17 . 1 . . . 6 . 4 5 . 7 . 10 . 4 . . 10 Saboteur 1 | . . . . . . . . . . . . . . . . . . . . . . . . . . . . 1 . . . Grunt 107 | . 1 . . . . 9 1 11 13 . 14 2 13 . 4 2 . 1 1 . 3 . 3 3 3 8 . 5 . 1 9 Brawler 7 | . . . . 1 . . . 1 1 . 1 . 1 . . . . . . . . . . 1 . . . 1 . . . Duelist 4 | . . . . . . . . 1 . . . . 1 . . . . . . . . . . . . 1 . . . . 1 Protector 2 | . . . . . . . . . . . 1 . . . . . . . . . . . . . . 1 . . . . . Sentry 37 | . . . . . . 1 2 3 6 2 4 . 3 . 8 . . . . . 1 . . 1 . 2 1 1 . . 2 Demolisher 1 | . . . . . . . . . . . 1 . . . . . . . . . . . . . . . . . . . . Specialist 6 | . . . . . . 1 . . 1 . . . 2 . . . . . . . . . . . 1 . . 1 . . . Hunter 12 | . . . . . . 1 . . 1 . 1 . 1 . . . . . . . . 1 . 2 . 2 . . . . 3 Programmer 40 | . . . . . . . . . 3 1 4 . 5 . . . . . . . . 3 1 2 . . . 5 . . 16 Heavy 1 | . . . . . . . . . . . . . . 1 . . . . . . . . . . . . . . . . . Behemoth 3 | . . . . . . . . . . . . . . . . . . 1 . . . . . . . . 1 1 . . . Cetus Guard 2 | . . . . . . . . . . . . . . . . 2 . . . . . . . . . . . . . . . Executioner 1 | . . . . . . . . . . . . . . . . . . . . . . . . . . . . . . 1 . Decomposer 1 | . . . . . . . . . . . . . . . . . . . . . . . 1 . . . . . . . . Wasp 1 | . . . . . . . . . . . . . . . . . . . . . . . . . . . . . . 1 . Thug 1 | . . . . . . . 1 . . . . . . . . . . . . . . . . . . . . . . . . Guerrilla 1 | . . . . . . . . . . . . . . . . . . 1 . . . . . . . . . . . . . Mutant 1 | . . . . . . . . . . . . . . . . . . 1 . . . . . . . . . . . . . Best Kill Streak 15 | 1 2 2 . 1 . 5 3 6 7 3 7 2 13 3 2 2 1 1 4 . 3 5 3 5 3 5 1 5 . 1 15 Combat Bots Only 13 | . 1 2 . 1 . 5 3 6 7 1 7 2 13 1 2 2 . 1 4 . 3 5 3 5 3 5 1 5 . 1 13 Max Kills in Single Turn 4 | 1 1 1 . 1 . 2 2 1 1 1 1 1 2 1 1 1 1 1 3 . 2 1 1 1 2 4 1 2 . 2 3 Gunslinging 1 | . . . . . . . . . . . . . . . . . . . 1 . 1 . . . . . . 1 . . 1 Exploded 4 | . . . . . . 2 . . . . . . . . . . . . . . . . . . . 4 . . . . 3 Melee . | . . . . . . . . . . . . . . . . . . . . . . . . . . . . . . . . Uniques/NPCs Destroyed . | . . . . . . . . . . . . . . . . . . . . . . . . . . . . . . . . Combat | -11 -10 -10 -10 -9 -8 -8 -8 -8 -8 -7 -7 -7 -7 -6 -6 -6 -5 -5 -5 -5 -4 -4 -4 -4 -4 -3 -3 -3 -3 -2 -1 -------- Run | Yrd Mat Min Exi Min Mat Gar Mat Sto Gar Fac Gar Fac Gar Fac Ext Cet Fac Upp Upp Zhi Pro Fac Upp Upp War Pro Res Arm Lab Res Acc Hostile Shots Fired 2228 | . 12 20 . 4 2 89 29 86 116 42 216 2 249 4 263 22 2 21 13 . 29 35 31 116 15 216 23 74 . 8 489 Missed 688 | . 2 6 . 3 . 24 9 24 30 23 48 1 64 2 90 11 . 4 1 . 10 15 13 41 5 53 6 25 . 6 172 Hits 1540 | . 10 14 . 1 2 65 20 62 86 19 168 1 185 2 173 11 2 17 12 . 19 20 18 75 10 163 17 49 . 2 317 Melee 10 | . . . . . . . . 2 . . 2 . . . . . . . . . . . . 2 . . . . . . 4 Projectile 1530 | . 10 14 . 1 2 65 20 60 86 19 166 1 185 2 173 11 2 17 12 . 19 20 18 73 10 163 17 49 . 2 313 AOE 10 | . . . . . . . . . 1 . 4 . . . 1 . . . . . . . . . 2 . . 1 . . 1 Critical Strikes 66 | . 1 . . . . 5 1 5 10 . 5 . 2 . 3 2 . 2 . . 2 . 1 4 1 4 . 8 . . 10 Actively Blocked 7 | . . . . . . 1 . . 5 . . . . . . . . . . . . . . . . 1 . . . . . Part Disruptions 3 | . . . . . . . . . . . . . . . . . . 1 . . . . . . 1 . . . . . 1 Damage Taken 25713 | . 158 121 . 12 39 934 281 976 1303 234 2021 44 2323 413 1663 284 48 323 196 . 225 352 177 805 170 2940 524 1342 . 68 7737 Core 2909 | . 18 27 . . 39 114 13 103 142 6 87 17 109 67 122 80 . 51 . . 9 10 . 9 14 130 15 148 . 34 1545 Absorbed by Shields 2632 | . . . . . . . . . . . 264 . . . 359 78 . . . . 133 118 170 576 161 773 . . . . . Reduced by Siege Mode 85 | . . . . . . . . . . . . . . . . . . . . . . . . 16 . 69 . . . . . Redirected to Shielding 184 | . . . . . . 18 5 . 52 . . . . . . . . . . . . . . . . 73 9 27 . . . Ignored by Resistances 292 | . . . . . . . . . . . . . 197 . 95 . . . . . . . . . . . . . . . . Regen/Repaired (Parts) 342 | . . . . . . . . . . . . . . . . . . . . . . . . . 303 . . . . 39 . Core Remaining (%) 78 | 100 . . . 82 . . . . 25 . . . 68 . . 68 . . . . 94 . . . . 85 . . 87 97 . Volleys Fired 996 | 3 10 9 . 4 . 100 18 43 71 17 84 3 109 36 76 19 5 7 44 . 14 16 9 35 7 48 19 74 . 11 105 Largest 6 | 2 2 2 . 2 . 3 3 3 3 3 3 3 3 3 3 1 3 3 3 . 3 3 3 3 2 2 2 4 . 5 6 Hottest 400 | 40 40 40 . 40 . 120 185 210 165 120 240 240 270 270 270 240 240 72 72 . 72 172 172 172 140 140 226 160 . 200 400 Shots Fired 2319 | 6 20 18 . 8 . 129 54 121 206 51 226 9 286 66 139 20 15 21 62 . 40 48 27 104 12 92 38 210 . 43 248 Gun 916 | 6 20 18 . 8 . 31 36 103 100 . 36 . . . 23 2 15 21 62 . 40 21 . . . . . 182 . 40 152 Cannon 1324 | . . . . . . 92 18 18 106 51 190 9 286 66 78 18 . . . . . 27 27 104 12 90 38 10 . 3 81 Launcher 23 | . . . . . . 6 . . . . . . . . . . . . . . . . . . . 2 . . . . 15 Special 56 | . . . . . . . . . . . . . . . 38 . . . . . . . . . . . . 18 . . . Kinetic 1198 | 6 20 18 . 8 . 31 18 4 106 51 142 . 155 . 3 18 . . . . . 27 27 104 12 90 . 182 . 40 136 Thermal 1026 | . . . . . . 92 36 117 100 . 84 9 131 66 98 2 15 21 62 . 40 21 . . . . 38 10 . 3 81 Explosive 21 | . . . . . . 6 . . . . . . . . . . . . . . . . . . . . . . . . 15 Electromagnetic . | . . . . . . . . . . . . . . . . . . . . . . . . . . . . . . . . Entropic 18 | . . . . . . . . . . . . . . . . . . . . . . . . . . 2 . . . . 16 Robot Hit Streak 53 | 3 8 12 . 2 . 10 5 10 11 12 24 14 53 10 20 29 10 3 4 . 6 8 6 7 7 11 5 16 . 5 9 Robot Miss Streak 8 | . 3 1 . 4 . 3 3 4 5 5 2 1 8 1 2 . 1 2 4 . 6 3 5 5 1 3 4 3 . 6 7 Penetration Max 1 | . . . . . . . . . . . 1 . 1 . . 1 . . . . . . . . 1 . . 1 . 1 1 Secondary Targets 21 | . . 1 . . . . . 1 5 . 1 . . . . . . . 2 . 2 2 . . . . . 2 . . 5 Max Gunslinging Chain 2 | . . 1 . . . . . 1 1 . 1 . . . . . . . 1 . 1 1 . . . . . 1 . . 2 Shots Hit Robots 1211 | 3 12 13 . 3 . 55 28 75 84 30 128 7 171 18 109 19 10 10 12 . 20 25 12 48 7 46 14 111 . 18 123 Core Hits 575 | 3 4 5 . 2 . 36 12 32 41 10 55 2 63 7 29 9 4 4 9 . 12 8 5 17 5 24 7 55 . 11 104 Critical Kills 54 | . . . . . . 1 . . . . 2 . . 2 2 . . . . . . . . . . . . 19 . 5 23 Critical Parts Destroyed 55 | . 1 . . . . . . 1 . . 2 . . . . . . . . . . . . . . . . 22 . 5 24 Critical Strikes 180 | . 1 . . . . 1 . 4 4 1 10 . 22 2 2 . 1 2 1 . 4 1 1 6 . 8 . 49 . 11 49 Burn 13 | . . . . . . . . 3 2 . . . . . . . 1 2 1 . 4 . . . . . . . . . . Meltdown 6 | . . . . . . 1 . . . . 1 . . 2 2 . . . . . . . . . . . . . . . . Destroy 112 | . 1 . . . . . . 1 . . 3 . . . . . . . . . . . . . . . . 49 . 11 47 Blast 47 | . . . . . . . . . 2 1 6 . 22 . . . . . . . . 1 1 6 . 8 . . . . . Detonate 2 | . . . . . . . . . . . . . . . . . . . . . . . . . . . . . . . 2 Melee Attacks . | . . . . . . . . . . . . . . . . . . . . . . . . . . . . . . . . Impact . | . . . . . . . . . . . . . . . . . . . . . . . . . . . . . . . . Slashing . | . . . . . . . . . . . . . . . . . . . . . . . . . . . . . . . . Piercing . | . . . . . . . . . . . . . . . . . . . . . . . . . . . . . . . . Sneak Attacks . | . . . . . . . . . . . . . . . . . . . . . . . . . . . . . . . . Combat Hostiles . | . . . . . . . . . . . . . . . . . . . . . . . . . . . . . . . . Follow-up Attacks . | . . . . . . . . . . . . . . . . . . . . . . . . . . . . . . . . Damage Inflicted 40719 | 37 134 150 . 34 . 1600 799 1607 2188 915 3424 173 6491 779 2390 1511 272 350 482 . 544 1090 698 2649 664 4044 683 1079 . 172 5760 Guns 8450 | 37 134 148 . 34 . 225 513 1325 1000 . 311 . . . 309 27 272 350 482 . 544 239 . . . . . 996 . 172 1332 Cannons 27970 | . . . . . . 915 286 282 1188 915 3113 173 6491 578 2081 1484 . . . . . 851 698 2649 664 3391 683 . . . 1528 Explosions 4297 | . . . . . . 460 . . . . . . . 201 . . . . . . . . . . . 653 . 83 . . 2900 Melee . | . . . . . . . . . . . . . . . . . . . . . . . . . . . . . . . . Ramming 2 | . . 2 . . . . . . . . . . . . . . . . . . . . . . . . . . . . . Kinetic 20517 | 37 134 148 . 34 . 225 256 87 1188 915 2026 . 3558 . 78 1484 . . . . . 851 698 2649 664 3391 . 996 . 172 926 Thermal 16284 | . . . . . . 915 543 1520 1000 . 1398 173 2933 779 2312 27 272 350 482 . 544 239 . . . . 683 . . . 2114 Explosive 2857 | . . . . . . 460 . . . . . . . . . . . . . . . . . . . . . 83 . . 2314 Electromagnetic . | . . . . . . . . . . . . . . . . . . . . . . . . . . . . . . . . Impact . | . . . . . . . . . . . . . . . . . . . . . . . . . . . . . . . . Slashing . | . . . . . . . . . . . . . . . . . . . . . . . . . . . . . . . . Piercing . | . . . . . . . . . . . . . . . . . . . . . . . . . . . . . . . . Entropic 1059 | . . . . . . . . . . . . . . . . . . . . . . . . . . 653 . . . . 406 Highest Corruption 26 | . . . . . . . . 2 3 1 2 2 4 6 7 20 . . . . . 3 4 7 7 . . 7 7 . 26 Average Corruption 4 | . . . . . . . . 2 2 1 1 2 2 6 6 10 . . . . . 2 3 5 7 . . 4 7 . 10 Corruption Purged . | . . . . . . . . . . . . . . . . . . . . . . . . . . . . . . . . Corruption Blocked . | . . . . . . . . . . . . . . . . . . . . . . . . . . . . . . . . Effects 270 | . . . . . . . . 9 20 . 12 9 44 5 35 15 . . . . . 12 15 23 1 . . 12 . . 58 Message Errors 69 | . . . . . . . . 4 3 . 2 4 9 . 7 4 . . . . . 3 4 9 . . . 3 . . 17 Matter Fused 52 | . . . . . . . . 1 7 . 3 2 5 2 6 2 . . . . . 5 3 3 . . . 1 . . 12 Heat Flow Errors 25 | . . . . . . . . 1 1 . 2 . 5 . 6 1 . . . . . 2 2 1 1 . . 1 . . 2 Energy Discharges 33 | . . . . . . . . 3 1 . 1 . 7 . 5 . . . . . . . 4 4 . . . 2 . . 6 Parts Rejected 3 | . . . . . . . . . . . . 1 1 . . . . . . . . . . 1 . . . . . . . Parts Fused 2 | . . . . . . . . . . . . . . . . . . . . . . . . . . . . 1 . . 1 Data Loss (minor) 38 | . . . . . . . . . 5 . 1 1 9 2 6 4 . . . . . . . 3 . . . 2 . . 5 Data Loss (major) 12 | . . . . . . . . . . . 2 1 3 . 1 . . . . . . 1 . 1 . . . . . . 3 Misfires 17 | . . . . . . . . . 1 . . . 3 . 4 2 . . . . . . 1 . . . . . . . 6 Alerts 6 | . . . . . . . . . 1 . . . . 1 . 1 . . . . . 1 . . . . . . . . 2 Misdirections 1 | . . . . . . . . . . . . . . . . . . . . . . . . . . . . . . . 1 Weapon Failures 12 | . . . . . . . . . 1 . 1 . 2 . . 1 . . . . . . 1 1 . . . 2 . . 3 Overload Shots 3 | . . . . . . . . . . . . . . . . 1 . . 2 . . . . . . . . . . . . Overflow Damage 1640 | . . . . . . 12 16 . 1 53 56 15 186 4 22 13 . . . . . 183 66 280 51 399 49 12 . . 222 Projectiles 1412 | . . . . . . . 16 . 1 53 56 15 186 4 22 13 . . . . . 183 66 280 51 342 49 . . . 75 Explosions 228 | . . . . . . 12 . . . . . . . . . . . . . . . . . . . 57 . 12 . . 147 Melee . | . . . . . . . . . . . . . . . . . . . . . . . . . . . . . . . . Knockbacks 84 | . . . . . . . . . 12 6 12 . 13 . 1 1 . . . . . 7 3 9 2 18 . . . . . Impact . | . . . . . . . . . . . . . . . . . . . . . . . . . . . . . . . . Kinetic 79 | . . . . . . . . . 11 6 10 . 13 . 1 1 . . . . . 6 3 8 2 18 . . . . . Secondary 5 | . . . . . . . . . 1 . 2 . . . . . . . . . . 1 . 1 . . . . . . . Self-Inflicted Damage 249 | . . . . . . . . . . . . . . . . . . . . . . . . . . 137 . . . . 112 Shots 3 | . . . . . . . . . . . . . . . . . . . . . . . . . . 1 . . . . 2 Rammed 1 | . . 1 . . . . . . . . . . . . . . . . . . . . . . . . . . . . . Targets Rammed 1 | . . 1 . . . . . . . . . . . . . . . . . . . . . . . . . . . . . Kicked . | . . . . . . . . . . . . . . . . . . . . . . . . . . . . . . . . Crushed . | . . . . . . . . . . . . . . . . . . . . . . . . . . . . . . . . Highest Temperature 505 | . 9 . . 14 . 339 183 261 181 24 480 306 505 420 357 223 102 . . . . 219 214 58 196 22 303 323 . . 342 Average Temperature 86 | . 6 . . 6 . 68 61 114 34 7 106 145 91 132 103 93 53 . . . . 115 105 26 119 7 63 139 . . 56 Received Heat Transfer 4671 | . 90 . . 6 18 495 153 531 525 42 594 9 513 . 570 18 . 21 18 . 31 . 46 65 23 380 63 91 . . 369 Effects 7 | . . . . . . . . 1 . . 4 . 2 . . . . . . . . . . . . . . . . . . Shutdowns 1 | . . . . . . . . . . . . . 1 . . . . . . . . . . . . . . . . . . Energy Bleed 1 | . . . . . . . . . . . 1 . . . . . . . . . . . . . . . . . . . . Interference 4 | . . . . . . . . 1 . . 3 . . . . . . . . . . . . . . . . . . . . Damage (minor) 1 | . . . . . . . . . . . . . 1 . . . . . . . . . . . . . . . . . . Siege Activations 6 | . . . . . . . . . . . . . . . . . . . . . . . 1 1 . 4 . . . . . Total Turns 98 | . . . . . . . . . . . . . . . . . . . . . . . 2 11 . 85 . . . . . Longest Duration 32 | . . . . . . . . . . . . . . . . . . . . . . . 2 11 . 32 . . . . . Martial Activations . | . . . . . . . . . . . . . . . . . . . . . . . . . . . . . . . . Shielding Activations . | . . . . . . . . . . . . . . . . . . . . . . . . . . . . . . . . Robots Disrupted . | . . . . . . . . . . . . . . . . . . . . . . . . . . . . . . . . Combat Hostiles . | . . . . . . . . . . . . . . . . . . . . . . . . . . . . . . . . Robots Corrupted 1 | . . . . . . . . . . . . . . . . . . . . . . 1 . . . . . . . . . Combat Hostiles . | . . . . . . . . . . . . . . . . . . . . . . . . . . . . . . . . Parts Fried 2 | . . . . . . . . . . . . . . . . . . . . . . 2 . . . . . . . . . Impact Corruptions 1 | . . . . . . . . . . . . . . . . . . . . . . 1 . . . . . . . . . Robots Melted 15 | . . . . . . 1 . 1 . . 1 . 4 2 3 . . 2 . . 1 . . . . . . . . . . Combat Hostiles 9 | . . . . . . 1 . 1 . . 1 . . . 3 . . 2 . . 1 . . . . . . . . . . Parts Melted 72 | . . . . . . 5 1 9 3 . 12 1 12 4 7 . 2 2 2 . 6 . . . . . 1 1 . . 4 Heat Transferred 25986 | . . . . . . 1800 994 3177 1767 . 2452 350 4650 1000 3563 19 522 800 900 . 1403 500 . . . . 518 . . . 1571 Parts Sabotaged . | . . . . . . . . . . . . . . . . . . . . . . . . . . . . . . . . Parts Stolen . | . . . . . . . . . . . . . . . . . . . . . . . . . . . . . . . . Parts Stripped . | . . . . . . . . . . . . . . . . . . . . . . . . . . . . . . . . Power Chain Reactions . | . . . . . . . . . . . . . . . . . . . . . . . . . . . . . . . . Alert | -11 -10 -10 -10 -9 -8 -8 -8 -8 -8 -7 -7 -7 -7 -6 -6 -6 -5 -5 -5 -5 -4 -4 -4 -4 -4 -3 -3 -3 -3 -2 -1 ------- Run | Yrd Mat Min Exi Min Mat Gar Mat Sto Gar Fac Gar Fac Gar Fac Ext Cet Fac Upp Upp Zhi Pro Fac Upp Upp War Pro Res Arm Lab Res Acc Maximum Alert Level 5 | . . . . . . 4 3 2 4 2 5 3 5 4 3 3 2 . . . . 1 . . . . . 2 . . 3 Low Security (%) 25 | 100 100 100 . 100 100 12 . . . . . . . . . . . . . . . 23 . . . . 100 56 . 100 20 Level 1 6 | . . . . . . 6 . . 6 . 3 . . . . . . . . . . 76 . . . . . 23 . . 19 Level 2 22 | . . . . . . 31 . 100 28 100 12 . 7 . 52 29 99 . . . . . . . . . . 19 . . 16 Level 3 22 | . . . . . . 21 100 . 29 . 25 100 16 . 47 70 . . . . . . . . . . . . . . 43 Level 4 13 | . . . . . . 28 . . 35 . 43 . 16 100 . . . . . . . . . . . . . . . . . Level 5 8 | . . . . . . . . . . . 14 . 60 . . . . . . . . . . . . . . . . . . High Security . | . . . . . . . . . . . . . . . . . . . . . . . . . . . . . . . . Max Security . | . . . . . . . . . . . . . . . . . . . . . . . . . . . . . . . . Peak Influence 2518 | 5 61 88 . 78 . 1485 1086 622 1321 693 1843 976 2518 1321 1085 859 459 . . . . 288 . . . . 72 466 . 150 1088 Initial 1321 | . . 15 . . . . 723 442 351 693 373 967 613 1321 543 564 434 . . . . 237 . . . . 72 . . . . Average 702 | 1 14 16 . 13 . 793 927 547 880 584 1170 934 1632 1213 743 740 427 . . . . 219 . . . . 24 186 . 31 518 Influence Increases 16655 | 15 75 183 . 78 . 1545 738 499 1050 182 1520 109 2015 175 1488 485 105 355 734 . 679 329 100 360 80 510 132 966 . 228 1920 Destroy 0b10 Robot/C 8260 | . 20 120 . 60 . 680 400 340 560 60 700 60 980 40 680 220 20 140 340 . 380 200 80 320 80 460 40 420 . 40 820 Destroy 0b10 Robot/NC 345 | 15 5 5 . . . 5 20 20 . 25 10 . 35 30 35 10 10 . . . . 10 . . . . 15 10 . 10 75 Destroy Leader 1092 | . 12 20 . 10 . 20 112 72 40 32 60 10 60 22 74 10 12 30 30 . 30 40 20 40 . 50 26 92 . 10 158 Allied During Kill 2434 | . . 38 . 8 . 202 162 1 1 . 4 23 36 9 588 225 42 170 364 . 254 44 . . . . . 263 . . . Successful Hack 203 | . 8 . . . . 14 5 12 19 4 14 14 . 20 51 . . . . . . . . . . . . 42 . . . Select Force Hacks 30 | . 30 . . . . . . . . . . . . . . . . . . . . . . . . . . . . . . Disable Machine 480 | . . . . . . 30 15 15 45 45 30 . 45 15 45 15 15 . . . . 15 . . . . 15 60 . 15 60 Anti-Garrison Action 2250 | . . . . . . 450 . . 300 . 500 . 700 . . . . . . . . . . . . . . . . 150 150 Destroy Structure 1156 | . . . . . . 99 9 9 85 16 112 2 114 39 15 5 6 . . . . 20 . . . . 36 64 . 3 522 Lose Combat Pursuer 405 | . . . . . . 45 15 30 . . 90 . 45 . . . . 15 . . 15 . . . . . . 15 . . 135 Influence Decreases 15580 | 15 34 190 34 76 2 60 1176 1005 270 970 210 1076 373 1583 1589 719 461 486 787 235 302 514 292 294 84 464 240 510 456 228 845 Entered New Map 7374 | . . 26 34 . 2 . 762 605 190 628 160 876 263 1197 567 445 341 156 55 235 . 140 72 . 66 62 36 . 456 . . Time Decay 6202 | 15 34 144 . 76 . . 294 350 . 342 . 180 . 286 522 214 120 270 712 . 262 334 220 284 18 332 204 286 . 228 475 Lost Part 774 | . . . . . . 20 . 30 60 . 50 . 70 20 50 . . 20 . . . . . 10 . 70 . 4 . . 370 Lost Ally 1080 | . . 20 . . . 40 120 20 20 . . 20 40 80 300 60 . 40 20 . 40 40 . . . . . 220 . . . Purge Threat 150 | . . . . . . . . . . . . . . . 150 . . . . . . . . . . . . . . . . Squads Dispatched 53 | . 2 . . . . . 5 5 . 1 . 1 . 4 3 1 1 . . . . 2 . . . 1 4 4 . . 19 Investigation 11 | . 1 . . . . . 3 1 . . . 1 . . 1 1 . . . . . . . . . . 2 . . . 1 Extermination 12 | . . . . . . . . . . 1 . . . 1 . . . . . . . 2 . . . . . 2 . . 6 Reinforcement 17 | . 1 . . . . . 2 1 . . . . . 2 . . 1 . . . . . . . . . 2 2 . . 6 Assault 6 | . . . . . . . . . . . . . . 1 2 . . . . . . . . . . 1 . . . . 2 Garrison 7 | . . . . . . . . 3 . . . . . . . . . . . . . . . . . . . . . . 4 Intercept . | . . . . . . . . . . . . . . . . . . . . . . . . . . . . . . . . Searches Triggered . | . . . . . . . . . . . . . . . . . . . . . . . . . . . . . . . . Construction Impeded 2 | . . . . . . . 1 . . . . . . . . . . . . . . . . . . . . . . . 1 Haulers Reinforced 3 | . . . . . . . . . . . . . . . . . 1 . . . . . . . . . . . . . 2 Active Scanning Responses . | . . . . . . . . . . . . . . . . . . . . . . . . . . . . . . . . Cargo Convoy Interrupts . | . . . . . . . . . . . . . . . . . . . . . . . . . . . . . . . . Stealth | -11 -10 -10 -10 -9 -8 -8 -8 -8 -8 -7 -7 -7 -7 -6 -6 -6 -5 -5 -5 -5 -4 -4 -4 -4 -4 -3 -3 -3 -3 -2 -1 --------- Run | Yrd Mat Min Exi Min Mat Gar Mat Sto Gar Fac Gar Fac Gar Fac Ext Cet Fac Upp Upp Zhi Pro Fac Upp Upp War Pro Res Arm Lab Res Acc Distress Signals 19 | . 2 . . . . . 3 1 . . . . . . 2 2 . . . . . . . . 1 . 3 . . 5 . Communications Jammed 14 | . . . . . . . . . . . . . . . 1 . . . . . . . . . . . . 2 . . 11 Distress Signals 14 | . . . . . . . . . . . . . . . 1 . . . . . . . . . . . . 2 . . 11 Times Spotted 508 | . 9 6 . 4 3 36 20 18 28 6 41 2 46 1 31 13 1 8 16 . 18 10 4 18 13 33 13 27 . 11 72 Peak Tracking Total 12 | . 5 3 . 3 3 7 4 5 6 1 6 2 9 1 7 5 1 4 5 . 5 4 3 4 12 7 3 4 . 3 11 Tactical Retreats 17 | . . . . . . 1 1 1 . . 4 . 3 . . . . 1 . . 1 . . . . . . 1 . . 4 Traps | -11 -10 -10 -10 -9 -8 -8 -8 -8 -8 -7 -7 -7 -7 -6 -6 -6 -5 -5 -5 -5 -4 -4 -4 -4 -4 -3 -3 -3 -3 -2 -1 ------- Run | Yrd Mat Min Exi Min Mat Gar Mat Sto Gar Fac Gar Fac Gar Fac Ext Cet Fac Upp Upp Zhi Pro Fac Upp Upp War Pro Res Arm Lab Res Acc Traps Triggered 30 | . 1 . . . . 6 . 1 . 2 3 1 2 1 6 . . . . . . 2 . . 1 . . . . . 4 Indirectly . | . . . . . . . . . . . . . . . . . . . . . . . . . . . . . . . . Trap Hack Attempts . | . . . . . . . . . . . . . . . . . . . . . . . . . . . . . . . . Triggered . | . . . . . . . . . . . . . . . . . . . . . . . . . . . . . . . . Disarmed . | . . . . . . . . . . . . . . . . . . . . . . . . . . . . . . . . Reprogrammed . | . . . . . . . . . . . . . . . . . . . . . . . . . . . . . . . . Reused . | . . . . . . . . . . . . . . . . . . . . . . . . . . . . . . . . Traps Extracted . | . . . . . . . . . . . . . . . . . . . . . . . . . . . . . . . . Installed . | . . . . . . . . . . . . . . . . . . . . . . . . . . . . . . . . Triggered . | . . . . . . . . . . . . . . . . . . . . . . . . . . . . . . . . Machines | -11 -10 -10 -10 -9 -8 -8 -8 -8 -8 -7 -7 -7 -7 -6 -6 -6 -5 -5 -5 -5 -4 -4 -4 -4 -4 -3 -3 -3 -3 -2 -1 ---------- Run | Yrd Mat Min Exi Min Mat Gar Mat Sto Gar Fac Gar Fac Gar Fac Ext Cet Fac Upp Upp Zhi Pro Fac Upp Upp War Pro Res Arm Lab Res Acc Machines Disabled 67 | . . . . . . 8 1 1 8 3 12 . 9 1 3 1 1 1 3 . 1 1 . . 1 . 1 4 . 2 5 Max in Single Turn 2 | . . . . . . 1 . 1 1 1 2 . 2 1 1 1 1 1 1 . . . . . 1 . 1 2 . 1 1 Garrison Access 3 | . . . . . . . . . . . . . . . . . . . . . . . . . . . . . . 2 1 Garrison Relay 21 | . . . . . . 6 . . 4 . 6 . 5 . . . . . . . . . . . . . . . . . . Phase Generator 2 | . . . . . . . . . . . 1 . 1 . . . . . . . . . . . . . . . . . . Machines Repaired . | . . . . . . . . . . . . . . . . . . . . . . . . . . . . . . . . Machines Dismantled . | . . . . . . . . . . . . . . . . . . . . . . . . . . . . . . . . Machines Sabotaged . | . . . . . . . . . . . . . . . . . . . . . . . . . . . . . . . . Overloaded Fab Kills . | . . . . . . . . . . . . . . . . . . . . . . . . . . . . . . . . Hacking | -11 -10 -10 -10 -9 -8 -8 -8 -8 -8 -7 -7 -7 -7 -6 -6 -6 -5 -5 -5 -5 -4 -4 -4 -4 -4 -3 -3 -3 -3 -2 -1 --------- Run | Yrd Mat Min Exi Min Mat Gar Mat Sto Gar Fac Gar Fac Gar Fac Ext Cet Fac Upp Upp Zhi Pro Fac Upp Upp War Pro Res Arm Lab Res Acc Machines Accessed 74 | . 3 1 1 1 1 3 4 4 4 4 3 4 3 5 13 1 . . 2 4 1 2 . . 2 . 2 5 . . 1 Terminals 51 | . 2 . . . . 3 4 3 4 2 3 1 3 3 13 1 . . 1 . 1 1 . . . . 2 3 . . 1 Fabricators 6 | . . . . . . . . . . . . 1 . 2 . . . . . . . 1 . . . . . 2 . . . Repair Stations . | . . . . . . . . . . . . . . . . . . . . . . . . . . . . . . . . Recycling Units 3 | . 1 . . . . . . . . 1 . 1 . . . . . . . . . . . . . . . . . . . Scanalyzers . | . . . . . . . . . . . . . . . . . . . . . . . . . . . . . . . . Garrison Access 4 | . . . . . 1 . . 1 . 1 . 1 . . . . . . . . . . . . . . . . . . . Total Hacks 144 | . 8 1 1 1 1 6 9 6 5 7 3 5 5 5 21 3 . . 8 17 7 5 . . 5 . 5 8 . . 2 Successful 83 | . 5 1 1 1 1 2 2 4 3 2 1 3 1 4 9 . . . 8 17 7 1 . . 5 . 1 4 . . . Failed 61 | . 3 . . . . 4 7 2 2 5 2 2 4 1 12 3 . . . . . 4 . . . . 4 4 . . 2 Catastrophic 17 | . 1 . . . . 2 . . 2 1 1 1 . . 4 2 . . . . . . . . . . 1 1 . . 1 Database Lockouts . | . . . . . . . . . . . . . . . . . . . . . . . . . . . . . . . . Manual 19 | . 7 . . . . . 5 . . . . . . . 3 1 . . . . . . . . . . 2 . 1 . . Terminals 100 | . 6 . . . . 6 9 5 5 4 3 1 5 3 21 3 . . 7 . 7 2 . . . . 5 6 . . 2 Fabricators 9 | . . . . . . . . . . . . 2 . 2 . . . . . . . 3 . . . . . 2 . . . Repair Stations . | . . . . . . . . . . . . . . . . . . . . . . . . . . . . . . . . Recycling Units 5 | . 2 . . . . . . . . 2 . 1 . . . . . . . . . . . . . . . . . . . Scanalyzers . | . . . . . . . . . . . . . . . . . . . . . . . . . . . . . . . . Garrison Access 4 | . . . . . 1 . . 1 . 1 . 1 . . . . . . . . . . . . . . . . . . . Terminal Hacks 66 | . . 1 1 1 . 2 1 3 3 1 1 . 1 2 9 . . . 8 17 7 . . . 5 . 1 2 . . . Record 20 | . . . 1 . . . . . . . . . . . . . . . 7 5 7 . . . . . . . . . . Part Schematic 4 | . . . . . . . . . . . . . . . . . . . . 4 . . . . . . . . . . . Robot Analysis 4 | . . . . . . . . . . . . . . . . . . . . 4 . . . . . . . . . . . Prototype ID Bank 9 | . . . . . . . . . . . . . . . 1 . . . . 4 . . . . 4 . . . . . . Open Door 10 | . . 1 . 1 . . . 3 1 . . . . . 2 . . . 1 . . . . . 1 . . . . . . Open DSF 1 | . . . . . . . . . . . . . . 1 . . . . . . . . . . . . . . . . . Level Access Points 2 | . . . . . . . . . . . . . . . 1 . . . . . . . . . . . . 1 . . . Branch Access Points 2 | . . . . . . . . . . . . . . 1 . . . . . . . . . . . . 1 . . . . Emergency Access Points 2 | . . . . . . 1 . . 1 . . . . . . . . . . . . . . . . . . . . . . Unreport Threat 1 | . . . . . . . . . . . . . . . 1 . . . . . . . . . . . . . . . . Locate Traps 1 | . . . . . . . . . . . . . . . 1 . . . . . . . . . . . . . . . . Hauler Manifests 1 | . . . . . . . . . . . . . . . 1 . . . . . . . . . . . . . . . . Zone Layout 5 | . . . . . . . 1 . . 1 . . . . 2 . . . . . . . . . . . . 1 . . . Garrison Registry 3 | . . . . . . . . . 1 . 1 . 1 . . . . . . . . . . . . . . . . . . Patrol Navigation 1 | . . . . . . 1 . . . . . . . . . . . . . . . . . . . . . . . . . Fabricator Hacks 7 | . . . . . . . . . . . . 2 . 2 . . . . . . . 1 . . . . . 2 . . . Network Status 3 | . . . . . . . . . . . . 1 . 1 . . . . . . . 1 . . . . . . . . . Build 4 | . . . . . . . . . . . . 1 . 1 . . . . . . . . . . . . . 2 . . . Repair Station Hacks . | . . . . . . . . . . . . . . . . . . . . . . . . . . . . . . . . Recycling Unit Hacks 1 | . 1 . . . . . . . . . . . . . . . . . . . . . . . . . . . . . . Retrieve Components 1 | . 1 . . . . . . . . . . . . . . . . . . . . . . . . . . . . . . Scanalyzer . | . . . . . . . . . . . . . . . . . . . . . . . . . . . . . . . . Garrison Access Hacks 4 | . . . . . 1 . . 1 . 1 . 1 . . . . . . . . . . . . . . . . . . . Unlock Access 4 | . . . . . 1 . . 1 . 1 . 1 . . . . . . . . . . . . . . . . . . . Unauthorized Hacks 5 | . 4 . . . . . 1 . . . . . . . . . . . . . . . . . . . . . . . . Terminals 4 | . 3 . . . . . 1 . . . . . . . . . . . . . . . . . . . . . . . . Botnet 1 | . 1 . . . . . . . . . . . . . . . . . . . . . . . . . . . . . . Skim 3 | . 2 . . . . . 1 . . . . . . . . . . . . . . . . . . . . . . . . Fabricators . | . . . . . . . . . . . . . . . . . . . . . . . . . . . . . . . . Repair Stations . | . . . . . . . . . . . . . . . . . . . . . . . . . . . . . . . . Recycling Units 1 | . 1 . . . . . . . . . . . . . . . . . . . . . . . . . . . . . . Tunnel 1 | . 1 . . . . . . . . . . . . . . . . . . . . . . . . . . . . . . Scanalyzers . | . . . . . . . . . . . . . . . . . . . . . . . . . . . . . . . . Garrison Access . | . . . . . . . . . . . . . . . . . . . . . . . . . . . . . . . . Data Cores Recovered 3 | . . . . . . . 1 . . 1 . . . . . . . . . . . . . . . . . 1 . . . Used . | . . . . . . . . . . . . . . . . . . . . . . . . . . . . . . . . Hacking Detections 41 | . 1 . . . . 2 3 1 1 3 2 3 2 2 10 1 . . 1 . 1 2 . . . . 2 3 . . 1 Full Trace Events 6 | . . . . . . 1 1 . . . . . 1 . 1 1 . . . . . . . . . . . . . . 1 Feedback Events . | . . . . . . . . . . . . . . . . . . . . . . . . . . . . . . . . Feedback Blocked . | . . . . . . . . . . . . . . . . . . . . . . . . . . . . . . . . Robot Schematics Acquired . | . . . . . . . . . . . . . . . . . . . . . . . . . . . . . . . . Robots Built 8 | . . . . . . . . . . . . 4 . 4 . . . . . . . . . . . . . . . . . Authchips . | . . . . . . . . . . . . . . . . . . . . . . . . . . . . . . . . Time 202 | . . . . . . . . . . . . 67 . 67 . . . . . . . . . . . . . 68 . . . Total Robot Build Rating 32 | . . . . . . . . . . . . 16 . 16 . . . . . . . . . . . . . . . . . Part Schematics Acquired 4 | . . . . . . . . . . . . . . . . . . . . 4 . . . . . . . . . . . Parts Built 2 | . . . . . . . . . . . . . . . . . . . . . . . . . . . . 2 . . . Authchips . | . . . . . . . . . . . . . . . . . . . . . . . . . . . . . . . . Time 69 | . . . . . . . . . . . . . . . . . . . . . . . . . . . . 69 . . . Total Part Build Rating 18 | . . . . . . . . . . . . . . . . . . . . . . . . . . . . 18 . . . Parts Repaired . | . . . . . . . . . . . . . . . . . . . . . . . . . . . . . . . . Time . | . . . . . . . . . . . . . . . . . . . . . . . . . . . . . . . . Parts Recycled . | . . . . . . . . . . . . . . . . . . . . . . . . . . . . . . . . Recycled Matter . | . . . . . . . . . . . . . . . . . . . . . . . . . . . . . . . . Retrieved Matter . | . . . . . . . . . . . . . . . . . . . . . . . . . . . . . . . . Retrieved Components 3 | . 3 . . . . . . . . . . . . . . . . . . . . . . . . . . . . . . Parts Scanalyzed . | . . . . . . . . . . . . . . . . . . . . . . . . . . . . . . . . Part Schematics Acquired . | . . . . . . . . . . . . . . . . . . . . . . . . . . . . . . . . Parts Damaged . | . . . . . . . . . . . . . . . . . . . . . . . . . . . . . . . . Bothacking | -11 -10 -10 -10 -9 -8 -8 -8 -8 -8 -7 -7 -7 -7 -6 -6 -6 -5 -5 -5 -5 -4 -4 -4 -4 -4 -3 -3 -3 -3 -2 -1 ------------ Run | Yrd Mat Min Exi Min Mat Gar Mat Sto Gar Fac Gar Fac Gar Fac Ext Cet Fac Upp Upp Zhi Pro Fac Upp Upp War Pro Res Arm Lab Res Acc Used RIF Installer . | . . . . . . . . . . . . . . . . . . . . . . . . . . . . . . . . Robots Hacked . | . . . . . . . . . . . . . . . . . . . . . . . . . . . . . . . . Non-combat . | . . . . . . . . . . . . . . . . . . . . . . . . . . . . . . . . Combat . | . . . . . . . . . . . . . . . . . . . . . . . . . . . . . . . . Robot Hacks Applied . | . . . . . . . . . . . . . . . . . . . . . . . . . . . . . . . . Relay Couplers Released 87 | . . . . . . 23 . . 14 . 27 . 20 . . . . . . . . . . . . . . . . 2 1 Machine Destruction 84 | . . . . . . 23 . . 14 . 24 . 20 . . . . . . . . . . . . . . . . 2 1 Programmers 3 | . . . . . . . . . . . 3 . . . . . . . . . . . . . . . . . . . . Fabnet Peak Effective % . | . . . . . . . . . . . . . . . . . . . . . . . . . . . . . . . . Robots Rewired 48 | . . . . . . 11 . . . . . . . . 25 . . . . . . . . . 1 . . 11 . . . Allies Hacked 2 | . . . . . . . . . . . . . . . . . . . . . . . . . . . . 2 . . . Hacks Repelled . | . . . . . . . . . . . . . . . . . . . . . . . . . . . . . . . . Allies | -11 -10 -10 -10 -9 -8 -8 -8 -8 -8 -7 -7 -7 -7 -6 -6 -6 -5 -5 -5 -5 -4 -4 -4 -4 -4 -3 -3 -3 -3 -2 -1 -------- Run | Yrd Mat Min Exi Min Mat Gar Mat Sto Gar Fac Gar Fac Gar Fac Ext Cet Fac Upp Upp Zhi Pro Fac Upp Upp War Pro Res Arm Lab Res Acc Total Allies 84 | . . 5 . 1 . 11 . . 1 . 1 4 . 4 30 5 . . . . . . . . 1 . . 21 . . . Largest Group 18 | . . 5 4 3 2 8 8 1 1 . 1 5 4 4 18 14 13 11 8 5 5 2 . . 1 1 . 13 . . . Highest-Rated Group 851 | . . 86 78 63 32 224 224 25 39 . 39 87 75 48 667 851 746 569 481 340 340 135 . . 64 61 . 607 . . . Highest-Rated Ally 159 | . . 31 31 31 16 40 40 25 39 . 39 39 39 12 159 159 143 96 96 96 96 96 . . 64 61 . 58 . . . Initial Warlord ECA Mod 771 | . . . . . . . 10 10 10 17 17 29 29 38 38 38 37 37 37 37 36 36 36 36 36 35 35 35 35 34 33 Total Orders 3 | . . . . . . . . . . . . . . . . . . 3 . . . . . . . . . . . . . EXPLORE 3 | . . . . . . . . . . . . . . . . . . 3 . . . . . . . . . . . . . Ally Attacks 696 | . . 9 . 13 . 79 84 1 4 . 7 33 29 15 155 67 10 50 35 . 53 6 . . . 3 . 43 . . . Total Damage 14873 | . . 95 . 182 . 1017 1758 84 86 . 52 328 398 173 3025 1550 249 1474 1202 . 1884 96 . . . . . 1220 . . . Kills 122 | . . 3 . 4 . 17 16 1 . . 3 1 6 1 26 10 1 6 12 . 11 1 . . . . . 3 . . . Allies Corrupted 4 | . . . . . . . . . . . . . . . . . . . . . . . . . . . . 4 . . . Allies Melted 1 | . . . . . . . . . . . . . . . . . . . . . . . . . . . . . . 1 . Intel | -11 -10 -10 -10 -9 -8 -8 -8 -8 -8 -7 -7 -7 -7 -6 -6 -6 -5 -5 -5 -5 -4 -4 -4 -4 -4 -3 -3 -3 -3 -2 -1 ------- Run | Yrd Mat Min Exi Min Mat Gar Mat Sto Gar Fac Gar Fac Gar Fac Ext Cet Fac Upp Upp Zhi Pro Fac Upp Upp War Pro Res Arm Lab Res Acc Active Infowar (turns) 16200 | 10 190 980 548 53 . . 191 798 . . . . 67 231 880 . . 579 2795 129 1198 740 764 909 977 252 107 715 16 1390 1681 Optics 3227 | . . . . . . . . . . . . . . . . . . . . . . . . . . . . 140 16 1390 1681 Sensors 1568 | . . . . . . . . . . . . . . . . . . . . . . . . . . . . . . . 1568 Seismic 1781 | 10 190 980 548 53 . . . . . . . . . . . . . . . . . . . . . . . . . . . Machine Analysis 989 | . . . . . . . 191 798 . . . . . . . . . . . . . . . . . . . . . . . Jamming 13293 | . . . . . . . . . . . . . 67 231 880 . . 579 2795 129 1198 740 764 909 977 252 107 715 16 1390 1544 Robot Analysis Total 4 | . . . . . . . . . . . . . . . . . . . . 4 . . . . . . . . . . . Derelict Logs Recovered 8 | . . 1 . . . . . . . . . . . . . . . 1 3 . 2 . 1 . . . . . . . . Drone Launches 8 | . . . . . . . . . . . . . . . 2 . . 3 . . . . . . . 3 . . . . . Drone Recoveries 3 | . . . . . . . . . . . . . . . . . . 3 . . . . . . . . . . . . . Exploration | -11 -10 -10 -10 -9 -8 -8 -8 -8 -8 -7 -7 -7 -7 -6 -6 -6 -5 -5 -5 -5 -4 -4 -4 -4 -4 -3 -3 -3 -3 -2 -1 ------------- Run | Yrd Mat Min Exi Min Mat Gar Mat Sto Gar Fac Gar Fac Gar Fac Ext Cet Fac Upp Upp Zhi Pro Fac Upp Upp War Pro Res Arm Lab Res Acc Turns Passed 29314 | 131 190 980 548 420 28 1375 654 798 1200 765 1417 362 2399 632 1443 446 257 591 3310 420 1198 740 764 909 1879 1023 545 803 16 1390 1681 Spaces Moved 15061 | 76 99 569 332 235 15 754 409 315 568 449 733 190 1008 333 673 191 131 245 1328 158 475 398 453 445 1091 443 347 450 15 990 1143 Core 127 | 16 . . . . . . . . . . . . . . . . . . . . . . . . . . . . . . 111 Treads 6416 | 60 99 569 332 235 15 147 . . . . . . 32 28 . . . 132 1328 153 475 398 453 445 1091 424 . . . . . Legs 4210 | . . . . . . . . . . . 197 190 976 . . . . . . . . . . . . 19 347 450 15 990 1026 Wheels 4302 | . . . . . . 607 409 315 568 449 536 . . 305 673 191 131 113 . 5 . . . . . . . . . . . Hover . | . . . . . . . . . . . . . . . . . . . . . . . . . . . . . . . . Flight 6 | . . . . . . . . . . . . . . . . . . . . . . . . . . . . . . . 6 Fastest Speed 40 | 50 160 160 160 160 160 105 135 120 120 130 130 180 180 145 130 130 123 123 240 205 240 160 160 160 160 110 110 110 112 112 40 Average Speed 158 | 136 160 160 160 160 160 125 135 122 134 151 147 180 191 153 144 138 139 214 240 238 240 160 160 160 160 176 124 111 112 112 112 Slowest Speed 320 | 160 160 160 160 160 160 160 135 145 160 160 180 180 320 240 145 190 145 240 240 240 240 160 160 160 320 240 183 112 112 186 250 Overloaded Moves . | . . . . . . . . . . . . . . . . . . . . . . . . . . . . . . . . Propulsion Burnouts . | . . . . . . . . . . . . . . . . . . . . . . . . . . . . . . . . Robots Hopped . | . . . . . . . . . . . . . . . . . . . . . . . . . . . . . . . . Potential Cave-ins 6 | . . . . . . . . . . . . . . 6 . . . . . . . . . . . . . . . . . Cave-ins Triggered 1 | . . . . . . . . . . . . . . 1 . . . . . . . . . . . . . . . . . Teleports 1 | . . . . . . . . . . . . . . . . . . . . . . . . . . . . . . . 1 Exploration Rate (%) 49 | 5 32 99 68 47 5 92 38 37 84 14 81 8 92 9 78 68 6 54 98 60 71 9 62 55 91 63 15 38 17 39 43 Regions Visited 31 Branch Regions 16 Pre-discovered Areas 5 | . 1 . . . . . . . . . . . . . . . . 1 . 3 . . . . . . . . . . . Known Exits Taken 12 | . . . . . 1 . . 1 . 1 . 1 . 1 . 1 1 . . . 1 1 . . . . 1 . 1 1 . Unknown Exits Taken 15 | 1 1 1 1 1 . . 1 . . . . . . . 1 . . 1 1 1 . . 1 1 1 1 . 1 . . . Scrap Searched 13 | . . 2 . 1 . . . . . . . . . . . . . 1 2 . 1 . 2 3 . 1 . . . . . Spaces Dug 109 | . . . . . . . . . . . . . 10 35 . . . . 35 . . . . . . 2 6 10 . . 11 Terrain Destroyed 960 | . . . . . . 4 7 7 . 13 142 . 132 56 6 . 3 8 58 . . 12 17 56 2 144 20 34 . 1 238 Melee . | . . . . . . . . . . . . . . . . . . . . . . . . . . . . . . . . Projectile 413 | . . . . . . . 7 7 . 13 . . 69 41 6 . 3 8 43 . . 12 17 56 2 50 20 10 . . 49 AOE 534 | . . . . . . 4 . . . . 142 . 63 15 . . . . 15 . . . . . . 94 . 18 . . 183 Terrain Rammed . | . . . . . . . . . . . . . . . . . . . . . . . . . . . . . . . . Walls Destroyed . | . . . . . . . . . . . . . . . . . . . . . . . . . . . . . . . . Machines Disabled . | . . . . . . . . . . . . . . . . . . . . . . . . . . . . . . . . Actions | -11 -10 -10 -10 -9 -8 -8 -8 -8 -8 -7 -7 -7 -7 -6 -6 -6 -5 -5 -5 -5 -4 -4 -4 -4 -4 -3 -3 -3 -3 -2 -1 --------- Run | Yrd Mat Min Exi Min Mat Gar Mat Sto Gar Fac Gar Fac Gar Fac Ext Cet Fac Upp Upp Zhi Pro Fac Upp Upp War Pro Res Arm Lab Res Acc Total 18677 | 97 113 622 349 277 20 1071 479 635 856 495 900 202 1274 401 1047 347 199 294 1397 205 503 466 468 549 1210 548 421 622 14 1246 1350 Wait 1472 | . . 42 17 16 3 39 26 239 180 10 29 7 45 13 124 103 32 35 12 9 2 21 7 53 61 39 24 2 . 228 54 Move 15032 | 75 98 568 331 234 14 753 408 315 567 448 732 190 1007 332 672 190 130 244 1327 157 474 397 452 444 1090 442 346 449 14 989 1143 Hop . | . . . . . . . . . . . . . . . . . . . . . . . . . . . . . . . . Pick Up 276 | 12 3 2 1 6 . 24 10 8 16 7 14 . 38 6 6 11 12 1 5 7 2 9 . 5 16 2 16 22 . 4 11 Fast Attach 61 | 2 . . . 1 . 2 2 8 . 1 . 1 8 1 . 5 1 . 2 4 3 . . 1 . . 3 12 . 2 2 Attach 175 | 5 . . . . 2 7 1 8 10 3 10 . 15 6 13 5 4 2 1 5 . 9 . 3 12 11 8 7 . 4 24 Detach 31 | . . . . . 1 . . . . 1 2 . 3 . 5 4 . 1 . 3 . 1 . 1 . . . 3 . 2 4 Swap 97 | . 1 . . 5 . 7 . 1 2 3 2 1 6 2 9 2 4 3 2 6 2 3 . . 5 . 3 24 . 2 2 Drop 249 | . 1 . . 11 . 11 14 13 9 5 7 . 43 5 5 8 11 1 4 14 6 10 . 7 18 6 2 29 . 4 5 Fire 996 | 3 10 9 . 4 . 100 18 43 71 17 84 3 109 36 76 19 5 7 44 . 14 16 9 35 7 48 19 74 . 11 105 Melee . | . . . . . . . . . . . . . . . . . . . . . . . . . . . . . . . . Ram . | . . . . . . . . . . . . . . . . . . . . . . . . . . . . . . . . Kick . | . . . . . . . . . . . . . . . . . . . . . . . . . . . . . . . . Crush 1 | . . 1 . . . . . . . . . . . . . . . . . . . . . . . . . . . . . Escape Stasis 76 | . . . . . . 24 . . . . 20 . . . 32 . . . . . . . . . . . . . . . . Rewire 211 | . . . . . . 104 . . 1 . . . . . 105 . . . . . . . . . 1 . . . . . . Trap . | . . . . . . . . . . . . . . . . . . . . . . . . . . . . . . . . Miscellaneous . | . . . . . . . . . . . . . . . . . . . . . . . . . . . . . . . . Route ------- -11/Scrapyard -10/Materials -10/Mines (discovered 4 exits: [*Mat x2] / *Exi / [*Sub]) -10/Exiles -9/Mines -8/Materials -8/Garrison (discovered 3 exits: *Mat x3) -8/Materials (discovered 3 exits: *Fac / *Sto x2) -8/Storage -8/Garrison (discovered 3 exits: *Fac x3) -7/Factory (discovered 4 exits: *Fac x2 / [*Low] / Gar) -7/Garrison (discovered 3 exits: *Fac x3) -7/Factory -7/Garrison (discovered 3 exits: *Fac x3) -6/Factory (discovered 4 exits: Low x2 / *Ext x2) -6/Extension (discovered 3 exits: *Fac x2 / *Cet) -6/Cetus (discovered 2 exits: *Fac / [*Arc]) -5/Factory -5/Upper Caves -5/Upper Caves (discovered 2 exits: *Fac / *Zhi) -5/Zhirov -4/Proximity Caves -4/Factory (discovered 2 exits: *Upp x2) -4/Upper Caves -4/Upper Caves -4/Warlord -3/Proximity Caves -3/Research (discovered 3 exits: *Arm / Tes x2) -3/Armory (discovered 3 exits: Res x2 / *Lab) -3/Lab -2/Research -1/Access History --------- Turn | Location | Event 13 | -11/Scrapyard | Discovered new exit (range 15) 132 | -11/Scrapyard | Entered Materials 305 | -10/Materials | Discovered new exit (range 12) 316 | -10/Materials | Build established: Mutant 322 | -10/Materials | Entered Mines 505 | -10/Mines | Assisted by bots powering up and referring to "LRC-V3" 587 | -10/Mines | Found the Drone Emporium 595 | -10/Mines | Found Prototype Device 651 | -10/Mines | Discovered new exit (range 7) 687 | -10/Mines | Discovered new exit (range 7) 1101 | -10/Mines | Learned Materials emergency access door positions 1159 | -10/Mines | Discovered new exit (range 14) 1197 | -10/Mines | Deemed a non-threat by the Exiles lab entrance 1197 | -10/Mines | Discovered new exit (range 5) 1235 | -10/Mines | Found a Scrap Suit stashed away for nefarious purposes 1242 | -10/Mines | Found Scrap Suit 1302 | -10/Mines | Entered Exiles 1302 | -10/Exiles | Found Exiles lab abandoned 1302 | -10/Exiles | Accompanied by 4 allies 1332 | -10/Exiles | Led the pair of lost Derelicts to a safe place 1819 | -10/Exiles | Discovered new exit (range 10) 1850 | -10/Exiles | Entered Mines 1850 | -9/Mines | Accompanied by 2 allies 1853 | -9/Mines | Received a Mining Laser from a helpful Derelict 1896 | -9/Mines | Assembled infested the area 1898 | -9/Mines | Found DCF Scrap (16 items) 2061 | -9/Mines | Found a hidden stash of uninstalled traps 2095 | -9/Mines | Discovered new exit (range 9) 2222 | -9/Mines | Met a Derelict who couldn't figure out how to use a Trap Extractor 2270 | -9/Mines | Entered Materials 2270 | -8/Materials | Accompanied by 2 allies 2270 | -8/Materials | Evolved 4 slots: Propulsion x1, Utility x2, Weapon x1 2273 | -8/Materials | Identified Bomb Drone Bay 2294 | -8/Materials | Identified exit to Garrison 2298 | -8/Materials | Entered Garrison 2298 | -8/Garrison | Accompanied by 2 allies 2330 | -8/Garrison | Triggered checkpoint 2351 | -8/Garrison | Garrison Relay disabled 2446 | -8/Garrison | Triggered checkpoint 2456 | -8/Garrison | Triggered checkpoint 2514 | -8/Garrison | Triggered checkpoint 2555 | -8/Garrison | Garrison Relay disabled 2793 | -8/Garrison | Lost 3 allies 2863 | -8/Garrison | Discovered new exit (range 6) 2864 | -8/Garrison | Triggered checkpoint 2900 | -8/Garrison | Garrison Relay disabled 2985 | -8/Garrison | Triggered checkpoint 2998 | -8/Garrison | Triggered checkpoint 3074 | -8/Garrison | Discovered new exit (range 11) 3104 | -8/Garrison | Build established: Commander-Mutant 3112 | -8/Garrison | Garrison Relay disabled 3118 | -8/Garrison | Triggered checkpoint 3135 | -8/Garrison | Garrison Relay disabled 3245 | -8/Garrison | Discovered new exit (range 10) 3321 | -8/Garrison | Garrison Relay disabled 3673 | -8/Garrison | Entered Materials 3673 | -8/Materials | Accompanied by 8 allies 3752 | -8/Materials | Discovered new exit (range 16) 3787 | -8/Materials | Build established: Commander-Tank 3983 | -8/Materials | Discovered new exit (range 13) 4091 | -8/Materials | Discovered new exit (range 9) 4308 | -8/Materials | Build established: Tank 4327 | -8/Materials | Entered Storage 4327 | -8/Storage | Accompanied by 1 ally 4468 | -8/Storage | Garrison activated, responded to threat 5125 | -8/Storage | Identified exit to Garrison 5125 | -8/Storage | Entered Garrison 5181 | -8/Garrison | Triggered checkpoint 5182 | -8/Garrison | Core integrity fell below 50% 5219 | -8/Garrison | Garrison Relay disabled 5232 | -8/Garrison | Discovered new exit (range 57) 5232 | -8/Garrison | Discovered new exit (range 75) 5232 | -8/Garrison | Discovered new exit (range 63) 5311 | -8/Garrison | Triggered checkpoint 5312 | -8/Garrison | Triggered checkpoint 5369 | -8/Garrison | Destroyed 7 combat bots 5468 | -8/Garrison | Lost 5 parts (1p1u3w) 5557 | -8/Garrison | Triggered checkpoint 5581 | -8/Garrison | Garrison Relay disabled 5666 | -8/Garrison | Triggered checkpoint 5777 | -8/Garrison | Rescued a captive Derelict 5818 | -8/Garrison | Garrison Relay disabled 5831 | -8/Garrison | Triggered checkpoint 6011 | -8/Garrison | Triggered checkpoint 6132 | -8/Garrison | Garrison Relay disabled 6325 | -8/Garrison | Entered Factory 6325 | -7/Factory | Evolved 2 slots: Utility x2 6383 | -7/Factory | Discovered new exit (range 13) 6423 | -7/Factory | Discovered new exit (range 7) 6617 | -7/Factory | Build established: Gunner 6659 | -7/Factory | Discovered new exit (range 15) 7034 | -7/Factory | Identified exit to Garrison 7090 | -7/Factory | Entered Garrison 7136 | -7/Garrison | Triggered checkpoint 7158 | -7/Garrison | Garrison Relay disabled 7309 | -7/Garrison | Triggered checkpoint 7365 | -7/Garrison | Destroyed 7 combat bots 7462 | -7/Garrison | Triggered checkpoint 7507 | -7/Garrison | Lost 3 parts (1u2w) 7518 | -7/Garrison | Garrison Relay disabled 7528 | -7/Garrison | Discovered new exit (range 12) 7528 | -7/Garrison | Discovered new exit (range 91) 7528 | -7/Garrison | Discovered new exit (range 57) 7590 | -7/Garrison | Phase Generator disabled 7668 | -7/Garrison | Triggered checkpoint 7794 | -7/Garrison | Garrison Relay disabled 7814 | -7/Garrison | Triggered checkpoint 7834 | -7/Garrison | Garrison Relay disabled 8099 | -7/Garrison | Build established: Tank 8365 | -7/Garrison | Rescued a captive Derelict 8402 | -7/Garrison | Triggered checkpoint 8418 | -7/Garrison | Garrison Relay disabled 8429 | -7/Garrison | Garrison Relay disabled 8507 | -7/Garrison | Entered Factory 8507 | -7/Factory | Accompanied by 1 ally 8594 | -7/Factory | Fabricated S-27 Virus? 8862 | -7/Factory | Identified exit to Garrison 8869 | -7/Factory | Entered Garrison 8869 | -7/Garrison | Accompanied by 4 allies 8891 | -7/Garrison | Discovered new exit (range 67) 8891 | -7/Garrison | Discovered new exit (range 68) 8891 | -7/Garrison | Discovered new exit (range 89) 8973 | -7/Garrison | Build established: Gunner 9095 | -7/Garrison | Triggered checkpoint 9122 | -7/Garrison | Garrison Relay disabled 9136 | -7/Garrison | Garrison Relay disabled 9210 | -7/Garrison | Found Hvy. Reflective Plating 9214 | -7/Garrison | Found Hvy. Reflective Plating 9225 | -7/Garrison | Found Hvy. Reflective Plating 9429 | -7/Garrison | Triggered checkpoint 9439 | -7/Garrison | Triggered checkpoint 9500 | -7/Garrison | Destroyed 13 combat bots 9713 | -7/Garrison | Triggered checkpoint 9730 | -7/Garrison | Garrison Relay disabled 9777 | -7/Garrison | Lost 4 parts (1p1u2w) 10051 | -7/Garrison | Build established: Mutant 10309 | -7/Garrison | Triggered checkpoint 10407 | -7/Garrison | Phase Generator disabled 10457 | -7/Garrison | Build established: Gunner 10694 | -7/Garrison | Triggered checkpoint 10718 | -7/Garrison | Garrison Relay disabled 10809 | -7/Garrison | Triggered checkpoint 10857 | -7/Garrison | Triggered checkpoint 10879 | -7/Garrison | Garrison Relay disabled 11268 | -7/Garrison | Entered Factory 11268 | -6/Factory | Evolved 2 slots: Propulsion x1, Utility x1 11284 | -6/Factory | Identified exit to DSF 11531 | -6/Factory | Identified exit to Lower Caves 11531 | -6/Factory | Identified exit to Extension 11567 | -6/Factory | Fabricated S-27 Virus? 11618 | -6/Factory | First assault squad dispatched 11642 | -6/Factory | Build established: Hauler-Gunner 11752 | -6/Factory | Crushed by falling debris 11900 | -6/Factory | Entered Extension 12097 | -6/Extension | Rescued a captive Derelict 12126 | -6/Extension | Identified exit to Factory 12346 | -6/Extension | Rescued A7 12540 | -6/Extension | Build established: Commander-Gunner 12600 | -6/Extension | First assault squad dispatched 12766 | -6/Extension | Spotted B-75 Beast 12781 | -6/Extension | Allies destroyed B-75 Beast 12791 | -6/Extension | Spotted B-75 Beast 12812 | -6/Extension | Allies destroyed B-75 Beast 12867 | -6/Extension | Rescued a captive Derelict 12940 | -6/Extension | Rescued a captive Derelict 12941 | -6/Extension | Rescued a captive Derelict 13288 | -6/Extension | Discovered new exit (range 6) 13326 | -6/Extension | Build established: Commander-Mutant 13336 | -6/Extension | Lost 6 allies 13343 | -6/Extension | Entered Cetus 13343 | -6/Cetus | Accompanied by 12 allies (A7) 13348 | -6/Cetus | Acquired a Cetus Manufacturing Module code from A7 13361 | -6/Cetus | Spotted Cetus Guard 13361 | -6/Cetus | Spotted Cetus Guard 13364 | -6/Cetus | Spotted Cetus Guard 13364 | -6/Cetus | Spotted Cetus Guard 13370 | -6/Cetus | Destroyed Cetus Guard 13378 | -6/Cetus | Allies destroyed Cetus Guard 13380 | -6/Cetus | Allies destroyed Cetus Guard 13393 | -6/Cetus | Allies destroyed Cetus Guard 13423 | -6/Cetus | Lost 3 allies 13459 | -6/Cetus | Started Cetus Manufacturing Module 13484 | -6/Cetus | Manufactured an Enhanced Grunt 13487 | -6/Cetus | Escorted A7 to Cetus Mainframe 13509 | -6/Cetus | Manufactured an Enhanced Grunt 13534 | -6/Cetus | Manufactured an Enhanced Grunt 13555 | -6/Cetus | Discovered new exit (range 16) 13559 | -6/Cetus | Manufactured an Enhanced Grunt 13584 | -6/Cetus | Manufactured an Enhanced Grunt 13584 | -6/Cetus | Spotted Cetus Guard 13584 | -6/Cetus | Spotted Cetus Guard 13588 | -6/Cetus | Spotted Cetus Guard 13595 | -6/Cetus | Allies destroyed Cetus Guard 13595 | -6/Cetus | Spotted Cetus Guard 13596 | -6/Cetus | Destroyed Cetus Guard 13599 | -6/Cetus | Allies destroyed Cetus Guard 13603 | -6/Cetus | Allies destroyed Cetus Guard 13633 | -6/Cetus | Discovered exit to Factory (range 15) 13639 | -6/Cetus | Met Revision 17 13649 | -6/Cetus | System corruption reached 10% 13789 | -6/Cetus | Entered Factory 13789 | -5/Factory | Accompanied by 13 allies (A7) 13789 | -5/Factory | Evolved 2 slots: Power x1, Propulsion x1 13794 | -5/Factory | Received a hacking code to weaken MAIN.C 13925 | -5/Factory | Discovered new exit (range 16) 13946 | -5/Factory | Build established: Commander-Gunner 13951 | -5/Factory | Identified exit to Upper Caves 14046 | -5/Factory | Entered Upper Caves 14046 | -5/Upper Caves | Accompanied by 12 allies 14052 | -5/Upper Caves | Met a Warlord Commander 14053 | -5/Upper Caves | Learned location of Warlord (-4) 14054 | -5/Upper Caves | Warlord Commander delivered Encrypted Comm Array 14060 | -5/Upper Caves | Found Encrypted Comm Array 14076 | -5/Upper Caves | Learned Factory stockpile data 14118 | -5/Upper Caves | Attacked by a delusional Derelict stockpiling parts 14304 | -5/Upper Caves | Spotted B-75 Beast 14332 | -5/Upper Caves | Destroyed B-75 Beast 14359 | -5/Upper Caves | Lost 3 allies 14608 | -5/Upper Caves | Discovered new exit (range 7) 14617 | -5/Upper Caves | Build established: Scavenger-Gunner 14637 | -5/Upper Caves | Entered another Upper Caves area 14637 | -5/Upper Caves | Accompanied by 8 allies 14842 | -5/Upper Caves | Attracted the attention of an 0b10 base 14858 | -5/Upper Caves | Learned Armory garrison access intel 14858 | -5/Upper Caves | Learned Armory terminal intel 14858 | -5/Upper Caves | Learned Factory security intel 14858 | -5/Upper Caves | Learned 6 Lower Caves zone layouts 14858 | -5/Upper Caves | Learned location of 1 exit from Proximity Caves 14863 | -5/Upper Caves | Discovered new exit (range 15) 15117 | -5/Upper Caves | Learned location of 2 exits from Factory 15439 | -5/Upper Caves | Discovered new exit (range 8) 17343 | -5/Upper Caves | Learned 4 Factory zone layouts 17532 | -5/Upper Caves | Found Alien Artifact 17532 | -5/Upper Caves | Identified Core Expander 17532 | -5/Upper Caves | Installed Core Expander, added new Power slot 17746 | -5/Upper Caves | Build established: Scavenger-Tank 17947 | -5/Upper Caves | Entered Zhirov 17947 | -5/Zhirov | Accompanied by 5 allies 17947 | -5/Zhirov | Discovered new exit (range 3) 17991 | -5/Zhirov | Met Zhirov 18034 | -5/Zhirov | Learned location of Quarantine (-2) 18034 | -5/Zhirov | Learned location of Testing (-3) 18034 | -5/Zhirov | Learned location of Command (-1) 18058 | -5/Zhirov | Zhirov requested help retrieving the SGEMP Prototype 18094 | -5/Zhirov | Found Alien Artifact 18094 | -5/Zhirov | Identified Integrated Dissipator 18094 | -5/Zhirov | Installed Integrated Dissipator, increased core heat dissipation (+20) 18145 | -5/Zhirov | Found Alien Artifact 18367 | -5/Zhirov | Entered Proximity Caves 18367 | -4/Proximity Caves | Accompanied by 5 allies 18368 | -4/Proximity Caves | Identified exit to Factory 18427 | -4/Proximity Caves | Learned Research stockpile data 18472 | -4/Proximity Caves | Attracted the attention of an 0b10 checkpoint 19157 | -4/Proximity Caves | Learned Research stockpile data 19281 | -4/Proximity Caves | Attracted the attention of an 0b10 base 19325 | -4/Proximity Caves | Learned Research terminal intel 19325 | -4/Proximity Caves | Learned Extension security intel 19325 | -4/Proximity Caves | Learned Extension emergency access door positions 19325 | -4/Proximity Caves | Learned Factory emergency access door positions 19325 | -4/Proximity Caves | Learned Armory trap positions 19410 | -4/Proximity Caves | Found Prototype Device 19410 | -4/Proximity Caves | Identified Exp. Thermal Shield 19565 | -4/Proximity Caves | Entered Factory 19565 | -4/Factory | Accompanied by 2 allies 19565 | -4/Factory | Evolved 2 slots: Propulsion x1, Weapon x1 19566 | -4/Factory | Identified exit to Upper Caves 20305 | -4/Factory | Entered Upper Caves 20849 | -4/Upper Caves | Discovered new exit (range 3) 20860 | -4/Upper Caves | Learned Research garrison access intel 21069 | -4/Upper Caves | Entered another Upper Caves area 21139 | -4/Upper Caves | Attracted the attention of an 0b10 checkpoint 21868 | -4/Upper Caves | Discovered new exit (range 15) 21978 | -4/Upper Caves | Entered Warlord 22031 | -4/Warlord | System corruption cleaned by Quarantine Array 22414 | -4/Warlord | Found Prototype Reactor 22415 | -4/Warlord | Identified Vortex Chain Reactor 22444 | -4/Warlord | Found Prototype Processor 22450 | -4/Warlord | Found Prototype Device 22451 | -4/Warlord | Identified System Purifier 22885 | -4/Warlord | Warlord's base attacked by MAIN.C 22903 | -4/Warlord | Found Prototype Energy Gun 22906 | -4/Warlord | Found Prototype Energy Gun 22913 | -4/Warlord | Found Prototype Launcher 22918 | -4/Warlord | Met EX-DEC 22956 | -4/Warlord | Identified Exp. Target Analyzer 22958 | -4/Warlord | Found Prototype Energy Cannon 23132 | -4/Warlord | Met Warlord 23235 | -4/Warlord | Warlord forces counterattacked 23304 | -4/Warlord | Lost 3 allies 23560 | -4/Warlord | Warlord base infiltrated, sounded retreat 23747 | -4/Warlord | Spotted Striker 23775 | -4/Warlord | Lost 3 allies 23793 | -4/Warlord | Spotted Striker 23816 | -4/Warlord | Discovered new exit (range 15) 23830 | -4/Warlord | Lost 6 allies 23857 | -4/Warlord | Entered Proximity Caves 23857 | -3/Proximity Caves | Accompanied by 1 ally 23896 | -3/Proximity Caves | Attracted the attention of an 0b10 checkpoint 24448 | -3/Proximity Caves | Attracted the attention of an 0b10 outpost 24486 | -3/Proximity Caves | Lost 3 allies 24840 | -3/Proximity Caves | Discovered new exit (range 10) 24849 | -3/Proximity Caves | Identified Vortex Catalyst Activator 24878 | -3/Proximity Caves | Lost 3 parts (1n2w) 24880 | -3/Proximity Caves | Entered Research 24880 | -3/Research | Evolved 2 slots: Utility x2 24882 | -3/Research | Loaded intel: 21 terminal locations 24883 | -3/Research | Loaded intel: 4 garrison access locations 25080 | -3/Research | Revision forces began assault on 0b10 25145 | -3/Research | Met up with Revision 17++ 25158 | -3/Research | Build established: Mutant 25237 | -3/Research | Spotted B-86 Titan 25244 | -3/Research | Destroyed B-86 Titan 25282 | -3/Research | Identified exit to Armory 25282 | -3/Research | Identified exit to Testing 25374 | -3/Research | Found Fusion Bomb Launcher 25425 | -3/Research | Entered Armory 25426 | -3/Armory | Loaded intel: 47 trap records 25427 | -3/Armory | Loaded intel: 12 terminal locations 25568 | -3/Armory | Fabricated Enh. Quantum Rifle? 25640 | -3/Armory | Lost 8 allies 25650 | -3/Armory | Spotted B-86 Titan 25686 | -3/Armory | Destroyed B-86 Titan 25779 | -3/Armory | Found Gamma Bomb Array 25853 | -3/Armory | Assisted by bots powering up and referring to "LRC-V3" 25855 | -3/Armory | Identified exit to Research 26061 | -3/Armory | Lost 6 allies 26087 | -3/Armory | Found Prototype Processor 26088 | -3/Armory | Identified Spectral Analyzer 26091 | -3/Armory | Found Prototype Launcher 26092 | -3/Armory | Identified Com. Tesla Bomb Launcher 26100 | -3/Armory | Identified Vortex Rail (x2) 26150 | -3/Armory | Build established: Commander-Gunner 26177 | -3/Armory | Discovered new exit (range 5) 26185 | -3/Armory | Lost 3 allies 26228 | -3/Armory | Entered Lab 26228 | -3/Lab | Discovered exit to Research (range 9) 26242 | -3/Lab | Unable to decrypt terminal 26242 | -3/Lab | Opened the door to a hidden lab 26243 | -3/Lab | Gained access to the hidden lab's interior 26244 | -3/Lab | Entered Research 26244 | -2/Research | Warlord forces began assault on 0b10 26244 | -2/Research | Evolved 2 slots: Weapon x2 26269 | -2/Research | Distinguished unit "Knights of the Pentagonal Table" dispatched to help 26269 | -2/Research | Distinguished unit "The Professionals" dispatched to help 26284 | -2/Research | Met up with Warlord 26354 | -2/Research | Research machine network offline 26494 | -2/Research | Spotted Executioner 26494 | -2/Research | Discovered new exit (range 9) 26497 | -2/Research | Borebot progress halted 26507 | -2/Research | Found Prototype Processor 26508 | -2/Research | Identified Exp. Core Analyzer 26550 | -2/Research | Build established: Executioner 26674 | -2/Research | Spotted Executioner 26677 | -2/Research | Spotted Striker 26916 | -2/Research | Borebot progress halted 26924 | -2/Research | Spotted Striker 26928 | -2/Research | Spotted Executioner 26930 | -2/Research | Destroyed Executioner 27244 | -2/Research | Warlord invited to help at Command 27244 | -2/Research | Given Cave Seal Controls access code 27392 | -2/Research | Borebot progress halted 27549 | -2/Research | Identified exit to Access 27634 | -2/Research | Entered Access 27634 | -1/Access | Evolved 2 slots: Utility x2 27702 | -1/Access | Garrison activated, responded to threat 27766 | -1/Access | Spotted B-99 Colossus 27800 | -1/Access | Lost 3 allies 28028 | -1/Access | Destroyed 13 combat bots 28035 | -1/Access | Lost 6 parts (1p1n1u3w) 28337 | -1/Access | System corruption reached 10% 29015 | -1/Access | Identified Transdimensional Reconstructor 29015 | -1/Access | Warped through subspace 29195 | -1/Access | Identified BFG-9k Vortex Edition 29208 | -1/Access | Garrison activated, responded to threat 29236 | -1/Access | Core integrity fell below 50% 29244 | -1/Access | Spotted B-99 Colossus 29250 | -1/Access | Destroyed 8 combat bots 29252 | -1/Access | Core integrity fell below 20% 29281 | -1/Access | Lost 24 parts (3p8n7u6w) 29315 | -1/Access | Destroyed by P-80 Master with Gamma Rifle Last Messages --------------- 29247_ Slug penetrates Wall. 29248_ Discarded Centrium Leg. 29248_ Door malfunctions. 29249_ K-01 Serf collects debris. 29249_ Adv. Signal Interpreter destroyed. 29250_ Exp. Target Analyzer destroyed. 29250_ Penetrated by Slug. 29250_ Xenon Bombardment Thruster destroyed. 29251_ K-01 Serf collects debris. 29252_ P-80 Master resets K-01 Serf, system corruption cleaned. 29253_ K-01 Serf collects debris. 29254_ System corrupted: Matter fused (-7). 29254_ B-99 Colossus activates siege mode. 29257_ K-01 Serf collects debris. 29273_ SMX3,5VQUKW/LI>3VOIYI/76Y 29287_ R-10 Processor inserts Lgt. Ion Engine into recycling unit. 29289_ System corrupted: Heat flow error (+152). 29302_ Exp. Core Analyzer destroyed. Map ----- +----------------------------------------------------+ | ???????????????????=%=%* " "" | | ??????????????????? =!%! | + "" | | ??????????????????? #=! ########## # "" | | ??????????????????? !%%??????????# # "" | | ??????????????????? !????????????# # | | ??????????????????????????????????######### | | ??????????????????????????????????????????# | | ??????????????????????????????????????????######## | | ?????????????????????????????????????????????????? | | ?????????????????????????????????????????????????? | | ?????????????????????????????????????????????????? | | ?????????????????????????????????????????????????? | | ?????????????????????????????????????????????????? | | ?????????????????????????????????????????????????? | | ?????????????????????????????????????????????????? | | ?????????????????????????????????????????????????? | | ?????????????????????????????????????????????????? | | ?????????????????????????????????????????????????? | | ?????????????????????????????????????????????????? | | ?????????????????????????????????????????????????? | | ?????????????????????????????????????????????????? | | ?????????????????????????????????????????????????? | | ???????????????????????##+##?????????????????????? | | ???????????????????????# #?????????????????????? | | ?? ??????????########### #?????????????????????? | | ?? k @ +?????????????????????? | | ?? ??????????########### #?????????????????????? | | ?? ????????????????????# #?????????????????????? | | ?? ????????????????????# #?????????????????????? | | ? ????????????????????# #?????????????????????? | | ? ????????????????????# #?????????????????????? | | ? ????????????????????# #?????????????????????? | | ? #????????????????????# #?????????????????????? | | ? #????????????????????# #?????????????????????? | | ? #????????????????????# #?????????????????????? | | ? #????????????????????# #????????????????###### | | ? #????????????????????# #????????????????# | | ? #??????????######+#### #????????????????# | | ? #??????????# #????????????????# | | ? #####+###### #????????????????# | | # p###??????????????# | | p#p #??????????????# | | p##"######?????????# ! | | p## #?????????# | | ##= !#?????????# | | ## #?????????###### | | " " ## * #??????????????? | | """ """ ## *#??????????????? | | """ """ ## #??????????????? | | " " ###/#####??????????????? | +----------------------------------------------------+ Best States ------------- Heat Dissipation 94 Coolant Potential 80 Energy Generation 73 Energy Capacity 1290 Matter Stores 300 Matter Capacity 300 Sight Range 24 Robot Scan Range 16 Terrain Scan Density 10 Jamming Range 16 Corruption Block 20 Armor Coverage 600 Resistance: KI 30 Resistance: TH 25 Core Shielding 40 Phase Shifting 10 Evasion (%) 62 Targeting Accuracy 20 Target Analysis 10 Core Analysis 11 Armor Integrity Analysis 30 Recoil Reduction 6 Particle Charging 30 Kinecelleration 40 Offensive Hacking 14 Defensive Hacking 14 Item Schematics ----------------- Assault Drone Bay | -5/Zhirov | Free Exp. Optical Array | -5/Zhirov | Free Exp. Heat Sink | -5/Zhirov | Free Imp. Arc Thrower | -5/Zhirov | Free Robot Schematics ------------------ None Fabricated ------------ S-27 Virus | x4 | -7/Factory | Preloaded S-27 Virus | x4 | -6/Factory | Preloaded Enh. Quantum Rifle | x2 | -3/Armory | Preloaded Repaired ---------- Nothing Alien Tech Used ----------------- Core Expander Integrated Dissipator Transdimensional Reconstructor Achievements -------------- None Challenges ------------ None Game ------ Seed ArmoredAnalysisLance Manual? 0 Play Time 03:36:51 Cumulative 395.3 hours Start 2025.10.16 @ 04:51:42 End 2025.10.16 @ 18:01:41 Sessions 9 Manual Loads 0 Difficulty Rogue Special Mode None Game No. 514 Rogue 514 Adventurer 0 Explorer 0 Win Type - Total 12 Types 6/0/1/2/1/0/2/0/0/0 Lore% 88 Gallery% 84 Achievement% 71 Wizard Run 0 Options --------- Layout 1 ASCII 0 Keyboard 0 Movement Mouse Keybinds 0 Fullscreen 1 Font 24/Tamsyn Map View 50x40 Zoom Use 0% Tactical HUD 1 Map Filters NONE Filters NONE Steam 1 RUN: 780dde59-cd58-455c-91f8-e081374d90b8